{"text_format":"1","workbook":"xlsx","n_sheets":19,"sheets":["F-22 CATAL (2)","OPUSCAT","PRE","F-22 CATAL","Hoja1","Hoja2","Hoja3","Hoja4","datos","OPUS","OPUS2","Hoja5","OPUSS2","Hoja6","Hoja7","Hoja8","2019","Hoja9","Hoja10"],"not_rendered":{"charts":0,"images":1,"macros":1,"external_links":3,"defined_names":141,"comments":0,"pivot_tables":0},"unopened":[],"bounds":{"document_bytes":16777216,"sheet_cells":100000,"rows_first":2000,"rows_last":500,"rows_between":2000,"halvings":0,"cell_chars":16384,"cell_head_chars":4096},"cells_cut":0,"cells_raw":0,"read":"whole","date_system":"1900"}

{"sheet":"F-22 CATAL (2)","index":0,"n_rows":76,"n_cols":11,"rows_kept":76,"cut":false,"hidden":true,"merged":[[73,3,73,7],[75,0,75,2],[75,3,75,5],[75,6,75,7],[76,3,76,7],[72,3,72,5],[72,6,72,7],[61,3,61,7],[63,0,63,2],[63,3,63,7],[64,6,64,7],[65,6,65,7],[66,6,66,7],[67,6,67,7],[68,6,68,7],[69,6,69,7],[70,6,70,7],[71,6,71,7],[60,3,60,5],[60,6,60,7],[50,3,50,5],[50,6,50,7],[51,3,51,7],[55,6,55,7],[56,6,56,7],[57,6,57,7],[58,6,58,7],[59,6,59,7],[53,0,53,2],[53,3,53,7],[54,6,54,7],[44,6,44,7],[45,6,45,7],[46,6,46,7],[47,6,47,7],[48,6,48,7],[49,6,49,7],[43,0,43,2],[43,3,43,7],[32,3,32,7],[34,0,34,2],[34,3,34,7],[35,6,35,7],[36,6,36,7],[37,6,37,7],[38,6,38,7],[39,6,39,7],[40,3,40,5],[40,6,40,7],[41,3,41,7],[28,0,28,2],[28,3,28,7],[29,6,29,7],[30,6,30,7],[31,3,31,5],[31,6,31,7],[26,3,26,7],[16,6,16,7],[17,6,17,7],[18,3,18,5],[18,6,18,7],[22,6,22,7],[23,6,23,7],[24,6,24,7],[25,3,25,5],[25,6,25,7],[21,0,21,2],[21,3,21,7],[10,6,10,7],[12,0,12,2],[12,3,12,7],[13,6,13,7],[14,6,14,7],[15,6,15,7],[9,0,9,2],[9,3,9,7],[0,6,0,7],[2,2,3,7],[5,2,7,5],[5,6,7,7],[6,0,7,1]]}
[null,null,null,null,null,null,"FORMATO N0. 22"]
[]
[null,"COMISION DE VIVIENDA ","CATÁLOGO DE CONCEPTOS, CANTIDADES DE OBRA, PRECIOS UNITARIOS, IMPORTES PARCIALES Y TOTALES DE LA PROPUESTA"]
[null,"DEL ESTADO DE SONORA"]
[null,null,"FECHA DE PRESENTACIÓN DE LA PROPUESTA: "]
["LICITACIÓN No.:"]
["CONSTRUCCIÓN DE  1 (UNA) VIVIENDA DE 40.01 M2, A BASE DE LOSA DE CIMENTACIÓN, MUROS DE BLOCK, TECHO DE VIGUETA Y BOVEDILLA, INSTALACIONES ELÉCTRICAS, HIDRÁULICAS Y SANITARIAS. EN EL MUNICIPIO DE __________ SONORA."]
[]
[]
[" ",null,null,"CANTIDADES DE OBRA, PRECIOS UNITARIOS E IMPORTES"]
["CLAVE","DESCRIPCIÓN","UNIDAD","CANTIDAD","P. UNIT. CON NUMERO","PRECIO UNIT. CON LETRA","IMPORTE",null,1,35]
[]
["LOSA DE CIMENTACIÓN",null,null,"PESOS 00/100 M.N.**"]
["PC-01","      Limpia, trazo y nivelación.","M2",{"$f":"+K14","v":40.01},{"$f":"+#REF!","v":{"$error":"#REF!"}},null,{"$f":"D14*E14","v":{"$error":"#REF!"}},null,40.01,44.56,{"$f":"+I14*$I$11","v":40.01}]
["PC-02","      Excavación a mano en terreno investigado en obra, cualquier profundidad, incluye afine de taludes y acarreo fuera de la obra de material no utilizable.","M3",{"$f":"+K15","v":0.88},{"$f":"+#REF!","v":{"$error":"#REF!"}},null,{"$f":"D15*E15","v":{"$error":"#REF!"}},null,0.88,9.8800000000000008,{"$f":"+I15*$I$11","v":0.88}]
["PC-05","      Losa de Cimentación de 9 cm de espesor, a base de concreto F'c=200  kg/cm2; t.m.a. 3/4\" hecho en obra; reforzado con  malla electrosoldada 6x6-10/10, plantilla de 5 cm de espesor a base de concreto F'c=100 kg/cm2 t.m.a. 3/4\", dentellón perimetral e intermedio a base de armex de 15x20 cm; anclaje a base de  bastones con varilla 3/8\"  @ 30 con 40 cm de largo donde se indique en los planos de proyecto,  acabado pulido, incluye: fumigacion antitermitas con fumigante aditivo adherente termidor o similar, curado, vibrado, colado y todo lo necesario para su correcta ejecución.","M2",{"$f":"+K16","v":40.01},{"$f":"+#REF!","v":{"$error":"#REF!"}},null,{"$f":"D16*E16","v":{"$error":"#REF!"}},null,40.01,8.91,{"$f":"+I16*$I$11","v":40.01}]
["PC-06","      Impermeabilización a base de producto epóxico color negro aplicado sobre los 12 cm del desplante y 20 cm del espesor de la losa y dentellón perimetral  en todo el perímetro, incluye: materiales, mano de obra, herramienta y equipo necesarios para su correcta ejecución.","Ml",{"$f":"+K17","v":23.12},{"$f":"+#REF!","v":{"$error":"#REF!"}},null,{"$f":"D17*E17","v":{"$error":"#REF!"}},null,23.12,8.91,{"$f":"+I17*$I$11","v":23.12}]
["PC-07","      Afine, nivelacion y compactacion de terreno natural para desplante de losa de cimentacio, incluye todo lo necesario para su correcta ejecucion.","M2",{"$f":"+K18","v":40.01},{"$f":"+#REF!","v":{"$error":"#REF!"}},null,{"$f":"D18*E18","v":{"$error":"#REF!"}},null,40.01,44.56,{"$f":"+I18*$I$11","v":40.01}]
[null,null,null,"LOSA DE CIMENTACIÓN",null,null,{"$f":"+SUM(G14:H18)","v":{"$error":"#REF!"}}]
[]
[]
["MUROS"]
["MC-01","      Construcción de muro de block de 12x20x40 cm junteado con mortero cemento arena proporción 1:4, incluye; Muro de enrase, plomeado, relleno de huecos en contorno de ventanas a base de concreto F´c= 150 kg/cm2 hecho en obra t.m.a. 3/4\", materiales, mano de obra, herramienta, equipo, deberá quedar aparente por ambas caras.","M2",{"$f":"+K23","v":74.010000000000005},{"$f":"+#REF!","v":{"$error":"#REF!"}},null,{"$f":"D23*E23","v":{"$error":"#REF!"}},null,74.010000000000005,79.680000000000007,{"$f":"+I23*$I$11","v":74.010000000000005}]
["MC-02","      Castillo de concreto F´c=150 kg/cm2 hecho en obra t.m.a. 3/4\", 12x12 cm de sección, armado con armex 12x12-4; incluye: cimbra aparente y descimbra; fabricación, colado y  curado del concreto; materiales y mano de obra, deberá de quedar con acabado final aparente.","ML",{"$f":"+K24","v":43.46},{"$f":"+#REF!","v":{"$error":"#REF!"}},null,{"$f":"D24*E24","v":{"$error":"#REF!"}},null,43.46,43.46,{"$f":"+I24*$I$11","v":43.46}]
["MC-03","      Cadena de cerramiento de concreto F´c=150 kg/cm2 hecho en obra t.m.a. 3/4\", 12x20 cm de sección, armada con armex 12X20-4; incluye: cimbra aparente y descimbra; fabricación, colado y  curado del concreto; materiales y mano de obra, deberá de quedar con acabado final aparente.","ML",{"$f":"+K25","v":37.85},{"$f":"+#REF!","v":{"$error":"#REF!"}},null,{"$f":"D25*E25","v":{"$error":"#REF!"}},null,37.85,40.159999999999997,{"$f":"+I25*$I$11","v":37.85}]
[null,null,null,"MUROS",null,null,{"$f":"+SUM(G23:H25)","v":{"$error":"#REF!"}}]
[]
[]
["TECHO"]
["CU-01","      Losa aligerada de 15 cm de espesor, a base de bovedilla de poliestireno y vigueta de alma abierta con armadura de acero diseño 10-36 de la marca deacero o similar, con patín de 12 cm de ancho por 5 cm de peralte, colado de capa de compresión de 4 cm con concreto F'c=200 kg/cm2, t.m.a. 3/4\", reforzado malla electrosoldada de 6x6-10/10, el concepto incluye: afine de la superficie superior  con acabado semipulido para recibir impermeabilización, cimbra y descimbraaparente, volado de concreto armado de 0.19x0.10m, colado, vibrado, curado y todo lo necesario para su correcta ejecución.","M2",{"$f":"+K30","v":41.36},{"$f":"+#REF!","v":{"$error":"#REF!"}},null,{"$f":"D30*E30","v":{"$error":"#REF!"}},null,41.36,46.07,{"$f":"+I30*$I$11","v":41.36}]
["CU-02","      Impermeabilización de losa de azotea a base de impermeabilizante elastomerico marca termoteck o similar de 3 años de garantía,a razón de 1 m2/lt, y  tela de refuerzo sencillo, incluye limpieza y preparación de la superficie.","M2",{"$f":"+K31","v":41.36},{"$f":"+#REF!","v":{"$error":"#REF!"}},null,{"$f":"D31*E31","v":{"$error":"#REF!"}},null,41.36,46.07,{"$f":"+I31*$I$11","v":41.36}]
[null,null,null,"TECHO",null,null,{"$f":"SUM(G30:H31)","v":{"$error":"#REF!"}}]
[]
[]
["ACABADOS"]
["AC-02","      Sardinel de 10x10 cm a  base de concreto hidráulico de F'c=150 kg/cm2 t.m.a. 3/4\". Incluye: Herramienta, mano de obra y todo lo necesario para su correcta ejecución.","Ml",{"$f":"+K36","v":1.92},{"$f":"+#REF!","v":{"$error":"#REF!"}},null,{"$f":"D36*E36","v":{"$error":"#REF!"}},null,1.92,null,{"$f":"+I36*$I$11","v":1.92}]
["AC-03","      Aplanado de yeso en plafones, de 1.5 cm de espesor promedio, a plomo y regla, acabado pulido, reforzada con malla pollera en toda el área incluye: perfilado de aristas y remate en columnas, trabes y muros.","M2",{"$f":"+K37","v":35.6},{"$f":"+#REF!","v":{"$error":"#REF!"}},null,{"$f":"D37*E37","v":{"$error":"#REF!"}},null,35.6,null,{"$f":"+I37*$I$11","v":35.6}]
["AC-04","      Suministro y colocación de azulejo de 20x30cm de color blanco de la marca porcelanite o similar asentado con cemento crest o similar, boquilla de 2 mm a base de junta crest anti-hongo o similar.  Incluye: Herramienta, mano de obra y todo lo necesario para su correcta ejecución.","M2",{"$f":"+K38","v":3.8},{"$f":"+#REF!","v":{"$error":"#REF!"}},null,{"$f":"D38*E38","v":{"$error":"#REF!"}},null,3.8,null,{"$f":"+I38*$I$11","v":3.8}]
["AC-05","      Suministro y colocación de piso antiderrapante de 20x20cm de color blanco de la marca porcelanite o similar asentado con cemento crest o similar, boquilla de 2 mm a base de junta crest anti-hongo o similar. Incluye: Herramienta, mano de obra y todo lo necesario para su correcta ejecución.","M2",{"$f":"+K39","v":3.94},{"$f":"+#REF!","v":{"$error":"#REF!"}},null,{"$f":"D39*E39","v":{"$error":"#REF!"}},null,3.94,null,{"$f":"+I39*$I$11","v":3.94}]
["AC-09","      Colocación de placa de cerámica en medidas de 20x20 cm, con cemento crest, en muro de fachada. Incluye; Material, herramienta, mano de obra y todo lo necesario para su correcta ejecución.","Pza",{"$f":"+K40","v":1},{"$f":"+#REF!","v":{"$error":"#REF!"}},null,{"$f":"D40*E40","v":{"$error":"#REF!"}},null,1,null,{"$f":"+I40*$I$11","v":1}]
[null,null,null,"ACABADOS",null,null,{"$f":"+SUM(G36:H40)","v":{"$error":"#REF!"}}]
[]
[]
["PUERTAS Y VENTANAS"]
["PV-01","      Suministro e instalación de puerta tipo multypanel 0.90x2.06m con marco metálico de 0.96x2.10m fabricado a base de perfil tubular M-225., chapa tipo bola con llave para exterior modelo MH52T3  marca fanal o similar acabado en latón brillante para exterior, dos bisagras de 3\", pintura esmalte anticorrosivo color blanco en el marco metálico, el concepto incluye perfilado del hueco previo a su colocación con mortero cemento-arena 1:4. Incluye: Herramienta, mano de obra y todo lo necesario para su correcta ejecución.","Pza",{"$f":"+K45","v":1},{"$f":"+#REF!","v":{"$error":"#REF!"}},null,{"$f":"D45*E45","v":{"$error":"#REF!"}},null,1,1,{"$f":"+I45*$I$11","v":1}]
["PV-02","      Suministro e instalación de puerta de tambor 0.80x2.06m con marco metálico de 0.86x2.10m fabricado a base de perfil tubular M-225., chapa tipo bola para interior  marca fanal o similar, dos bisagras de 3\", pintura esmalte anticorrosivo color blanco en el marco metálico, el concepto incluye perfilado del hueco previo a su colocación con mortero cemento-arena 1:4. Incluye: Herramienta, mano de obra y todo lo necesario para su correcta ejecución.","Pza",2,{"$f":"+#REF!","v":{"$error":"#REF!"}},null,{"$error":"#REF!"},null,2,2,2]
["PV-03","      Suministro e instalación de puerta de tambor 0.70x2.06m con marco metálico de 0.76x2.10m fabricado a base de perfil tubular M-225., chapa tipo bola para interior  marca fanal o similar, dos bisagras de 3\", pintura esmalte anticorrosivo color blanco en el marco metálico, el concepto incluye perfilado del hueco previo a su colocación con mortero cemento-arena 1:4. Incluye: Herramienta, mano de obra y todo lo necesario para su correcta ejecución.","Pza",1,{"$f":"+#REF!","v":{"$error":"#REF!"}},null,{"$error":"#REF!"},null,1,1,1]
["PV-04","      Suministro y colocación  de ventana corrediza de 0.83x1.05m a base de perfil de aluminio anodizado natural  de 1 1/2\" con cristal claro de 3mm con un fijo lateral y un corredizo, incluye perfilado del hueco, previo a su colocación a base de mortero cemento-arena proporción  1:4. Incluye: Herramienta, mano de obra y todo lo necesario para su correcta ejecución.","Pza",3,{"$f":"+#REF!","v":{"$error":"#REF!"}},null,{"$error":"#REF!"},null,3,3,3]
["PV-05","      Suministro y colocación  de ventana corrediza de 0.60x0.40m a base de perfil de aluminio anodizado natural  de 1 1/2\" con cristal claro de 3mm con un fijo lateral y un corredizo, incluye perfilado del hueco previo a su colocación a base de mortero cemento-arena proporción  1:4. Incluye: Herramienta, mano de obra y todo lo necesario para su correcta ejecución.","Pza",1,{"$f":"+#REF!","v":{"$error":"#REF!"}},null,{"$error":"#REF!"},null,1,1,1]
["PV-06","      Suministro e instalación de puerta tipo multypanel 0.80x2.06m con marco metálico de 0.86x2.10m fabricado a base de perfil tubular M-225., chapa tipo bola con llave para exterior modelo MH52T3  marca fanal o similar acabado en latón brillante para exterior, dos bisagras de 3\", pintura esmalte anticorrosivo color blanco en el marco metálico, el concepto incluye perfilado del hueco previo a su colocación con mortero cemento-arena 1:4. Incluye: Herramienta, mano de obra y todo lo necesario para su correcta ejecución.","Pza",1,{"$f":"+#REF!","v":{"$error":"#REF!"}},null,{"$error":"#REF!"},null,1,1,1]
[null,null,null,"PUERTAS Y VENTANAS",null,null,{"$f":"+SUM(G45:H50)","v":{"$error":"#REF!"}},null,null,null,0]
[]
[]
["INSTALACIONES ELÉCTRICAS"]
["IE-01","      Suministro y colocación de centro de carga de dos circuitos  con una pieza de interruptor sencillo de 1x30 amperes, tubería galvanizada conduit pared delgada de 3/4\", el concepto incluye ranurado, resanado con mortero cemento-arena 1:4, prueba del correcto funcionamiento de las instalaciones y todo lo necesario para su correcto funcionamiento.","Pza",{"$f":"+K55","v":1},{"$f":"+#REF!","v":{"$error":"#REF!"}},null,{"$f":"D55*E55","v":{"$error":"#REF!"}},null,1,1,{"$f":"+I55*$I$11","v":1}]
["IE-02","      Salida eléctrica para tomacorriente, incluye; Contacto doble, tapa, poliducto eléctrico, cableado, ranurado, sujeción de poliducto, mano de obra y equipo.","Sal",9,{"$f":"+#REF!","v":{"$error":"#REF!"}},null,{"$error":"#REF!"},null,9,9,9]
["IE-03","      Salida eléctrica para apagador sencillo,  incluye: tapa de una via, poliducto eléctrico naranja reforzado de 1/2\", cableado con cable thw #12, ranurado, resanado con mortero cemento-arena 1:4, sujeción de poliducto, mano de obra y equipo.","Sal",3,{"$f":"+#REF!","v":{"$error":"#REF!"}},null,{"$error":"#REF!"},null,3,3,3]
["IE-04","      Salida eléctrica para apagador doble, incluye; tapa de dos vías, poliducto eléctrico naranja reforzado de 1/2\", cableado con cable thw #12, ranurado, resanado con mortero cemento-arena 1:4, sujeción de poliducto, mano de obra y equipo.","Sal",2,{"$f":"+#REF!","v":{"$error":"#REF!"}},null,{"$error":"#REF!"},null,2,2,2]
["IE-05","      Salida eléctrica para lámpara,  incluye; cableado con cable thw #12,  caja octogonal de 4\", con poliducto naranja reforzado de 1/2\", cableado, ranurado, resanado con mortero cemento arena 1:4, sujeción de poliducto, mano de obra y equipo.","Sal",7,{"$f":"+#REF!","v":{"$error":"#REF!"}},null,{"$error":"#REF!"},null,7,7,7]
["IE-06","      Suministro e instalación de foco fluorescente espiral 23 w. De luz fria con 100 W de iluminacion según proyecto, incluye: la roseta de porcelana de 4\" y todo lo necesario para su correcta instalación.","Pza",7,{"$f":"+#REF!","v":{"$error":"#REF!"}},null,{"$error":"#REF!"},null,7,7,7]
[null,null,null,"INSTALACIONES ELÉCTRICAS",null,null,{"$f":"+SUM(G55:H60)","v":{"$error":"#REF!"}}]
[]
[]
["INSTALACIONES HIDRÁULICAS Y SANITARIAS"]
["IHS-01","      Salidas para instalación sanitaria de 1 1/2\",  2\" y 4\" para ventila,  lavabo, sanitario, tarja y regadera, tubería de pvc, conexiones, pegamento, ranurado, resanado con mortero cemento-arena 1:4, pendiente, materiales, mano de obra, herramienta y equipo.","Sal",{"$f":"+K65","v":5},{"$f":"+#REF!","v":{"$error":"#REF!"}},null,{"$f":"D65*E65","v":{"$error":"#REF!"}},null,5,5,{"$f":"+I65*$I$11","v":5}]
["IHS-02","      Salidas para instalación hidráulica  para  regadera agua fría y caliente, lavabo, sanitario,  tarja o zinc, con tubería cpvc de 1/2\" marca duralon o similar, el concepto incluye: limpieza,  conexiones, ranurado, pendiente, materiales, mano de obra, herramienta,  equipo, resanado con mortero cemento-arena 1:4, prueba del correcto funcionamiento de las instalaciones y todo lo necesario para su correcto funcionamiento.","Sal",5,{"$f":"+#REF!","v":{"$error":"#REF!"}},null,{"$error":"#REF!"},null,5,5,5]
["IHS-03","      Suministro e instalación de sanitario marca lamosa o similar línea económica  en color blanco, incluye asiento, pijas, cuello de cera, manguera flexible, llave cromada de 1/2\".","Pza",1,{"$f":"+#REF!","v":{"$error":"#REF!"}},null,{"$error":"#REF!"},null,1,1,1]
["IHS-04","      Suministro e instalación de lavabo marca lamosa o similar línea económica  en color blanco, incluye: Llave mezcladora marca helvex o similar línea económica, patas, soportes, manguera flexible, llave cromada de 1/2\", cespol bote.","Pza",1,{"$f":"+#REF!","v":{"$error":"#REF!"}},null,{"$error":"#REF!"},null,1,1,1]
["IHS-05","      Suministro e instalación de regadera línea económica  incluye brazo y chapetón.","Pza",1,{"$f":"+#REF!","v":{"$error":"#REF!"}},null,{"$error":"#REF!"},null,1,1,1]
["IHS-06","      Construcción de registro sanitario de 46x45cm de medida interna, a base de ladrillo recocido común de la región de 7x14x28 cm, junteado con mortero cal-arena 1:5 + 10% de cemento, base y tapa a base de concreto F'c=150 kg/cm2 con t.m.a. 3/4\" reforzado con malla electrosoldada 6x6-10/10 el concepto incluye: enjarre interior con mortero cemento-arena 1:3, fabricación y colocación de dos jaladeras para la tapa a base de alambrón de 1/4\", con pases a base de poliducto de 1/2\". y todo lo necesario para su correcta ejecución.","Pza",2,{"$f":"+#REF!","v":{"$error":"#REF!"}},null,{"$error":"#REF!"},null,2,1,2]
["IHS-07","      Suministro e instalación de tinaco de 600 lt de la marca rotoplas o similar con el sistema de 3 capas para garantizar una vida útil de 35 años, con todos los accesorios como jarro de aire, flotador #5, válvula de llenado ¾\", multiconector con válvula de esfera, tuerca unión y válvula check, incluye base para nivelar tinaco (detalle plano), la alimentación hidráulica por medio de tubería cpvc de 1/2\" y todo lo necesario para su correcto funcionamiento.","Pza",1,{"$f":"+#REF!","v":{"$error":"#REF!"}},null,{"$error":"#REF!"},null,1,1,1]
["IHS-08","      Suministro e instalación de lavadero doble de empotrar, el concepto incluye; firme de concreto sencillo, murete de block de 12x20x40 cm, la salida sanitaria con tubería pvc de 2\" y la salida hidráulica con tubería cpvc de 1/2\", llave de jardín de 1/2\",  resanado con mortero cemento-arena 1:4  y todo lo necesario para su correcto funcionamiento.","Pza",1,{"$f":"+#REF!","v":{"$error":"#REF!"}},null,{"$error":"#REF!"},null,1,1,1]
[null,null,null,"INSTALACIONES HIDRÁULICAS Y SANITARIAS",null,null,{"$f":"+SUM(G65:H72)","v":{"$error":"#REF!"}}]
[]
[]
["TOTAL DE PRESUPUESTO **                                             ",null,null,"TOTAL DE PRESUPUESTO",null,null,{"$f":"+G73+G61+G51+G41+G32+G26+G19","v":{"$error":"#REF!"}}]

{"sheet":"OPUSCAT","index":1,"n_rows":18,"n_cols":10,"rows_kept":18,"cut":false,"hidden":false,"merged":[]}
["Capítulo","-",null,"MONTAJE DE 137(CIENTO TREINTA Y SIETE)  RECAMARA ADICIONALES  DE 16.65 M2 URBANA  A BASE DE MODULOS PREFABRICADOS , TECHO DE LAMINA GALVANIZADA E INSTALACIONES ELÉCTRICAS, EN  VARIAS LOCALIDADES DE LOS MUNICIPIOS DE ALAMOS, BACUM, HUATABAMPO, MAGDALENA, MAZATAN, SAN MIGUEL DE HORCASITAS Y URES  DEL ESTADO DE SONORA."]
["Subcapítulo","-","PRE","   PRELIMINARES","UD","CANTIDAD","PU",null,null,{"$f":"+datos!B4","v":137}]
["Concepto",null,"PRE-01","      TRAZO Y NIVELACIÓN DEL TERRENO ESTABLECIENDO EJES DE REFERENCIA CON ESTACAS DE ARILLA HILO NYLON Y CAL, MATERIAL, HERRAMIENTA Y MANO DE OBRA","M2",{"$f":"+J3","v":2260.5},null,null,16.5,{"$f":"+I3*$J$2","v":2260.5}]
["Concepto",null,"PRE-02","      TRABAJOS DE EXCAVACION PERIMETRAL PARA ALOJAR ESTRUCTURA PREFABRICADA DE 0.30X0.15M AL PERIMETRO TOTAL DEL PREDIO, INCLUYE ADINE Y COMPACTACION DEL TERRENO","ML",{"$f":"+J4","v":2329},null,null,17,{"$f":"+I4*$J$2","v":2329}]
["Concepto",null,"EST","   ESTRUCTURAL",null,0,null,null,null,0]
["Concepto",null,"EST-01","      TRASLADO, HABILITADO Y COLOCACION DE PANALES DE CONCRETO Y PERLITA DE DIFERENTES DIMENCIONES, INCLUYE SOLDAR LAS PLACAS ENTRE SI, CARGA, DESCARGA CON GRUA ASI COMO LA COLOCACION EN SU SITIO, INCLUYE, GRUA PARA MANIOBRAS DE COLOCACION, SOLDADORA, PLANTA DE LUZ, PLOMEADO DE MUROS, MATERIAL, HERAMIENTA Y MANO DE OBRA","PZA",137,null,null,1,137]
["Subcapítulo","-","ALB","   ALBAÑILERIAS",null,0,null,null,null,0]
["Concepto",null,"ALB-01","      RESANE DE JUNTAS FRIAS ENTRE PANALES A BASE DE MATERIAL CEMEX COLOR BLANCO MULTIPLAST O SIMILAR Y MALLLA GEOTEXTIL AUTOADERENTE DE 15CM EN TODA LA JUNTA, ACABADO FLOTEADO, INCLUYE MATERIAL, HERAMIENTA Y MANO DE OBRA","ML",3356.5,null,null,24.5,3356.5]
["Concepto",null,"ALB-02","      RESANE DE GRIETAS EN LA SUPERFICIE DE MUROS, CON PRODUCTO CEMEX BLANCO MULTIPLAST O SIMILAR, ACBADO FLOTEADO, INCLUYE LAVADO DE LA SUPERFICIE, APLICACION DEL PRODUCTO ACABADO FLOTEADO COLOCADO CON LLANA MATERIAL, HERRAMIENTA Y MANO DE OBRA","M2",5493.7,null,null,40.1,5493.7]
["Concepto",null,"ALB-03","      SUMINISTRO Y COLOCACION DE SIKA FLEX 1A  O SIMILAR EN JUNTAS FRIAS DE PISO DE CONCRETO, INCLUYE MATERIAL, HERRAMIENTA Y MANO DE OBRA","ML",3466.1,null,null,25.3,3466.1]
["Concepto",null,"ALB-04","      SUMINISTRO Y APLICACIONDE PINTURA BLANCA EN TODA LA SUPERFICIE CALIDAD OSEL  O SIMILAR , INCLUYE MATERIAL, HERAMIENTA Y MANO DE OBRA","M2",10987.4,null,null,80.2,10987.4]
["Subcapítulo","-","ALB-05","      ELABORACION DE REMATE PARA RESIVIR MURO Y  ELABORADA A BASE DE MORTERO CEMNETO-ARENA 1:3 SECCION VARIABLE DE 0.10 A 0.05CM DE 0.07CM DE ANCHO INCLUYE CIMBRA, DESCIMBRA, MATERIAL, HERRAMIENTA Y MANO DE OBRA","ML",1644,null,null,12,1644]
["Concepto",null,"TECH","   TECHUMBRE",null,0,null,null,null,0]
["Concepto",null,"TECH-01","      ELABORACION DE TECHUMBRE DE LAMINA GALVANIZADA R-72 DE 20FT, POLINERIA DE 4\" EN TODA SU SECCION INCLUYE MATERIAL, HERAMIENTA Y MANO DE OBRA","M2",2712.6,null,null,19.8,2712.6]
["Subcapítulo","-","ACA","   ACABADOS",null,0,null,null,null,0]
["Concepto",null,"ACA-01","      COLOCACION DE PUERTA EN BASTIDOR EXISTENTE INCLUYE MONTAJE, HERRAMIENTA Y MANO DE OBRA","PZA",137,null,null,1,137]
["Concepto",null,"ELE","   ELECTRICO",null,0,null,null,null,0]
["Concepto",null,"ELE-01","       COLOCACION DE ROSETA EXTERIOR PARA ALUMBRADO, INCLUYE MATERIAL, HERRAMIENTA ,  MANO DE OBRA, CABE ACLARAR QUE EN RELACION A LAS DEMAS  INSTALACIONES ELECTRICAS COMO CABLEADO, TOMACORRIENTE, APAGADOR ESTOS YA ESTAN INTEGRADOS A LOS MUROS.","PZA",137,null,null,1,137]

{"sheet":"PRE","index":2,"n_rows":27,"n_cols":8,"rows_kept":27,"cut":false,"hidden":true,"merged":[]}
["Capítulo","-",null,"TERMINACION DE 69(SESENTA Y NUEVE)  RECAMARA ADICIONALES  DE 16.65 M2 URBANA  A BASE DE LOSA DE CIMENTACIÓN, MUROS DE BLOCK, TECHO DE VIGUETA E INSTALACIONES ELÉCTRICAS, EN LA OCALIDAD DE  CUMPAS, SONORA.",null,null,null,"4'447,198.86"]
["Subcapítulo","-","1.-","   LOSA DE CIMENTACION",null,null,null,220616.74]
["Concepto",null,"PC-01U","      Limpia, trazo y nivelación.","M2",299.7,18.59,5571.42]
["Concepto",null,"PC-02U","      Excavación a mano en terreno investigado en obra, cualquier profundidad, incluye afine de taludes y acarreo fuera de la obra de material no utilizable.","M3",4.68,181.77,850.68]
["Concepto",null,"PC-05U","      Losa de Cimentación de 9 cm de espesor, a base de concreto F'c=200  kg/cm2; t.m.a. 3/4\" hecho en obra; reforzado con  malla electrosoldada 6x6-10/10, plantilla de 5 cm de espesor a base de concreto F'c=100 kg/cm2 t.m.a. 3/4\", dentellón perimetral e intermedio a base de armex de 15x20 cm; anclaje a base de  bastones con varilla corrugada 3/8\" grado 42 o 5/16 DA 6000  @ 30 con 40 cm de largo donde se indique en los planos de proyecto,  acabado pulido, incluye: fumigacion antitermitas con fumigante aditivo adherente termidor o similar, curado, vibrado, colado y todo lo necesario para su correcta ejecución.","M2",299.7,675.62,202483.31]
["Concepto",null,"PC-06U","      Impermeabilización a base de producto epóxico color negro aplicado sobre los 12 cm del desplante y 9 cm del espesor de la losa en todo el perímetro, incluye: materiales, mano de obra, herramienta y equipo necesarios para su correcta ejecución.","Ml",251.64,46.54,11711.33]
["Subcapítulo","-","2.-","   ALBAÑILERIA",null,null,null,963619.41]
["Concepto",null,"MC-01U","      Construcción de muro de block de 12x20x40 cm junteado con mortero cemento arena proporción 1:4, incluye; plomeado, relleno de huecos en contorno de ventanas a base de concreto F´c= 150 kg/cm2 hecho en obra t.m.a. 3/4\", materiales, mano de obra, herramienta, equipo, deberá quedar acabado comun.","M2",1220.8599999999999,450.59,550107.31000000006]
["Concepto",null,"MC-02U","      Castillo K-1 de concreto F´c=150 kg/cm2 hecho en obra t.m.a. 3/4\", 12x12 cm de sección, armado con armex 12x12-4; incluye: cimbra aparente y descimbra; fabricación, colado y  curado del concreto; materiales y mano de obra, deberá de quedar con acabado final aparente.","Ml",453,229.6,104008.8]
["Concepto",null,"MC-02UA","      Castillo K-2 ahogados de 2.50 ML de altura incluye el pretil, con  concreto F´c=150 kg/cm2 hecho en obra t.m.a. 3/4\", con una varilla corrugada de refuerzo de 3/8\";  armado, colado y  vibrado del concreto; materiales y mano de obra,.","Ml",399.96,71.48,28589.14]
["Concepto",null,"MC-03U","      Cadena de cerramiento de concreto F´c=150 kg/cm2 hecho en obra t.m.a. 3/4\", 12x20 cm de sección, armada con armex 12X20-4; incluye: cimbra aparente y descimbra; fabricación, colado y  curado del concreto; materiales y mano de obra, deberá de quedar con acabado final aparente.","Ml",982.08,286.04000000000002,280914.15999999997]
["Subcapítulo","-","3.-","   CUBIERTA",null,null,null,"1'000,282.42"]
["Concepto",null,"CU-01U","      Losa aligerada de 16 cm de espesor, a base de bovedilla de poliestireno y vigueta de alma abierta con armadura de acero diseño 10-36 de la marca deacero o similar, con patín de 12 cm de ancho por 5 cm de peralte, colado de capa de compresión de 4 cm con concreto F'c=200 kg/cm2, t.m.a. 3/4\", reforzado malla electrosoldada de 6x6-10/10, el concepto incluye: afine de la superficie superior  con acabado semipulido para recibir impermeabilización, cimbra y descimbra aparente, colado, vibrado, curado y todo lo necesario para su correcta ejecución. Para la ejecucion de este concepto el beneficiario aportara el importe de 4,000 pesos en la compra de los materiales alambre recocido, curacreto, malla electrosoldada 6x6 - 10/10, Vigueta alma abierta con armadura 12-36 y Bovedilla de poliestireno de 61x122 x11 cms de espesor; volado de 15x10 cms armado con varilla longitudinal de 3/8\" y bastones de 40 cms de longitud a cada 30 cms  y gotero  a  base de tuino de madera de 1\" (2.54 cms)","M2",1190.94,744,886059.36]
["Concepto",null,"CU-02U","      Impermeabilización de losa de azotea a base de impermeabilizante elastomerico de 3 años de garantía,a razón de 1 m2/lt, y  tela reforzada, incluye: 3 manos de impermeabilizante , limpieza y preparación de la superficie.","M2",1190.94,95.91,114223.06]
["Subcapítulo","-","4.-","   ACABADOS",null,null,null,"1'668,733.81"]
["Concepto",null,"AC-03U","      Aplanado de yeso en plafones, de 1.5 cm de espesor promedio, a plomo y regla, acabado pulido, reforzada con malla pollera en toda el área incluye: perfilado de aristas y remate en columnas, trabes y muros.","M2",1017.75,256.41000000000003,260961.28]
["Concepto",null,"AC-14U","      Pintura vinílica lavable en muros exteriores, interiores y plafond de yeso, incluye: material, limpieza, rebabeado, preparación de la superficie, aplicación de sellador vinílico y dos manos de pintura.","M2",6354.9,64.180000000000007,407857.48]
["Concepto",null,"AC-13UA","      Aplanado grueso en muros exteriores e interiroes  a base de  mortero cemento arena 1:4 en un espesor minimo de 1.5 cms , y terminado fino floteado con mortero cemento-arena 1:3 incluye: perfilado de aristas, remates, material, mano de obra y emboquillado.","m2",5337.15,187.35,999915.05]
["Subcapítulo","-","5.-","   PUERTAS Y VENTANAS",null,null,null,417567.3]
["Concepto",null,"PV-04U","      Suministro y colocación  de ventana corrediza de 0.83x1.05m a base de perfil de aluminio anodizado natural  de 1 1/2\" con cristal claro de 3mm con un fijo lateral y un corredizo, incluye: perfilado del hueco, previo a su colocación a base de mortero cemento-arena proporción  1:4. silicon, Herramienta, mano de obra y todo lo necesario para su correcta ejecución.","Pza",69,2155.14,148704.66]
["Concepto",null,"PV-01U","      Suministro e instalación de puerta de 0.90x2.06 mts, tipo multypanel lisa, fabricado con hoja de acero liso galvanizado cal. 28, con bastidor de madera de pino estufado, terminado en color blanco, relleno de esouma rigida de poliuretano con una densidad de 32 a 34 kg/m3 .,incluye marco metálico de 0.96x2.10m fabricado a base de perfil tubular M-225, chapa tipo bola con llave para exterior modelo MH52T3  marca fanal o similar acabado en latón brillante para exterior, dos bisagras de 3\", pintura esmalte anticorrosivo color blanco, perfilado del hueco previo a su colocación con mortero cemento-arena 1:4. Herramienta, mano de obra y todo lo necesario para su correcta ejecución.","Pza",69,3896.56,268862.64]
["Subcapítulo","-","6.-","   INSTALACIONES ELECTRICAS",null,null,null,176379.18]
["Concepto",null,"IE-02U","      Salida eléctrica para tomacorriente, incluye; Contacto doble, tapa, poliducto eléctrico, cableado, ranurado, sujeción de poliducto, mano de obra y equipo.","Sal",69,510.2,35203.800000000003]
["Concepto",null,"IE-03U","      Salida eléctrica para apagador sencillo de palanca color marfil marca leviton o similar,  incluye: tapa de una via, poliducto eléctrico naranja reforzado de 1/2\", cableado con cable thw #12, ranurado, resanado con mortero cemento-arena 1:4, sujeción de poliducto, mano de obra y equipo.","Sal",69,582.69000000000005,40205.61]
["Concepto",null,"IE-05U","      Salida eléctrica para lámpara,  incluye; cableado con cable thw #12,  caja octogonal de 4\", con poliducto naranja reforzado de 1/2\", cableado, ranurado, resanado con mortero cemento arena 1:4, sujeción de poliducto, mano de obra y equipo.","Sal",69,757.8,52288.2]
["Concepto",null,"IE-06U","      Suministro  de foco fluorescente espiral 23 w. De luz fria con 100 W de iluminacion según proyecto,","Pza",69,65.819999999999993,4541.58]
["Concepto",null,"IE-07U","      Alimentación eléctrica de la vivienda existente a la recamara adicional para una distancia maxima de 6 mts el concepto incluye; poliducto naranja reforzado, cable thw #12, prueba del funcionamiento de las instalaciones y todo lo necesario para su correcta ejecucion.","Sal,",69,639.71,44139.99]

{"sheet":"F-22 CATAL","index":3,"n_rows":47,"n_cols":24,"rows_kept":47,"cut":false,"hidden":false,"merged":[[23,0,23,2],[23,3,23,7],[24,6,24,7],[25,6,25,7],[29,3,29,5],[29,6,29,7],[26,6,26,7],[27,6,27,7],[28,6,28,7],[42,3,42,5],[42,6,42,7],[35,0,35,2],[40,3,40,7],[41,6,41,7],[30,0,30,2],[40,0,40,2],[36,6,36,7],[37,3,37,5],[37,6,37,7],[33,3,33,7],[30,3,30,7],[18,0,18,2],[21,3,21,7],[0,6,0,7],[2,2,3,7],[13,6,13,7],[6,2,7,5],[6,6,7,7],[4,6,4,7],[20,6,20,7],[15,3,15,5],[20,3,20,5],[15,6,15,7],[14,6,14,7],[47,3,47,7],[6,0,7,1],[9,0,9,2],[9,3,9,7],[10,6,10,7],[12,0,12,2],[12,3,12,7],[46,0,46,2],[46,3,46,5],[46,6,46,7],[18,3,18,7],[19,6,19,7],[31,6,31,7],[32,3,32,5],[32,6,32,7],[35,3,35,7]]}
[null,null,null,null,null,null,"FORMATO N0. 22"]
[]
[null,"COMISION DE VIVIENDA ","CATÁLOGO DE CONCEPTOS, CANTIDADES DE OBRA, PRECIOS UNITARIOS, IMPORTES PARCIALES Y TOTALES DE LA PROPUESTA"]
[null,"DEL ESTADO DE SONORA"]
[null,null,"FECHA DE PRESENTACIÓN DE LA PROPUESTA: ",null,null,null,{"$f":"IF(+datos!B10=\"\",\"\",+datos!B10)","v":""}]
[{"$f":"CONCATENATE(\"LICITACIÓN No.: \",+datos!B1)","v":"LICITACIÓN No.: "},null,"F. INICIO",null,"F. TERMINO",null,"PLAZO:",{"$f":"CONCATENATE(+datos!B8, \" DIAS NATURALES.\")","v":"150 DIAS NATURALES."}]
[{"$f":"+datos!B9","v":"MONTAJE DE 137(CIENTO TREINTA Y SIETE)  RECAMARA ADICIONALES  DE 16.65 M2 URBANA  A BASE DE MODULOS PREFABRICADOS , TECHO DE LAMINA GALVANIZADA E INSTALACIONES ELÉCTRICAS, EN  VARIAS LOCALIDADES DE LOS MUNICIPIOS DE ALAMOS, BACUM, HUATABAMPO, MAGDALENA, MAZATAN, SAN MIGUEL DE HORCASITAS Y URES  DEL ESTADO DE SONORA."}]
[]
[]
[" ",null,null,"CANTIDADES DE OBRA, PRECIOS UNITARIOS E IMPORTES"]
["CLAVE","DESCRIPCIÓN","UNIDAD","CANTIDAD","P. UNIT. CON NUMERO","PRECIO UNIT. CON LETRA","IMPORTE",null,1]
[]
[{"$f":"+OPUSCAT!D2","v":"   PRELIMINARES"},null,null,"PESOS 00/100 M.N.**"]
[{"$f":"+OPUSCAT!C3","v":"PRE-01"},{"$f":"CONCEPTOS(OPUSCAT!$C$3:$H$19,A14,2)","v":"      TRAZO Y NIVELACIÓN DEL TERRENO ESTABLECIENDO EJES DE REFERENCIA CON ESTACAS DE ARILLA HILO NYLON Y CAL, MATERIAL, HERRAMIENTA Y MANO DE OBRA"},{"$f":"CONCEPTOS(OPUSCAT!$C$3:$H$19,$A14,3)","v":"M2"},{"$f":"CONCEPTOS(OPUSCAT!$C$3:$H$19,$A14,4)","v":2260.5},{"$f":"CONCEPTOS(OPUSCAT!$C$3:$H$19,$A14,5)","v":0},null,{"$f":"D14*E14","v":0},null,{"$f":"+Hoja7!F3","v":16.649999999999999},null,{"$f":"+I14*$I$11","v":16.649999999999999}]
[{"$f":"+OPUSCAT!C4","v":"PRE-02"},{"$f":"CONCEPTOS(OPUSCAT!$C$3:$H$19,A15,2)","v":"      TRABAJOS DE EXCAVACION PERIMETRAL PARA ALOJAR ESTRUCTURA PREFABRICADA DE 0.30X0.15M AL PERIMETRO TOTAL DEL PREDIO, INCLUYE ADINE Y COMPACTACION DEL TERRENO"},{"$f":"CONCEPTOS(OPUSCAT!$C$3:$H$19,$A15,3)","v":"ML"},{"$f":"CONCEPTOS(OPUSCAT!$C$3:$H$19,$A15,4)","v":2329},{"$f":"CONCEPTOS(OPUSCAT!$C$3:$H$19,$A15,5)","v":0},null,{"$f":"D15*E15","v":0},null,{"$f":"+Hoja7!F4","v":0.26},null,{"$f":"+I15*$I$11","v":0.26}]
[null,null,null,{"$f":"+A13","v":"   PRELIMINARES"},null,null,{"$f":"+SUM(G14:H15)","v":0}]
[]
[]
[{"$f":"+OPUSCAT!D5","v":"   ESTRUCTURAL"}]
[{"$f":"+OPUSCAT!C6","v":"EST-01"},{"$f":"CONCEPTOS(OPUSCAT!$C$3:$H$19,A20,2)","v":"      TRASLADO, HABILITADO Y COLOCACION DE PANALES DE CONCRETO Y PERLITA DE DIFERENTES DIMENCIONES, INCLUYE SOLDAR LAS PLACAS ENTRE SI, CARGA, DESCARGA CON GRUA ASI COMO LA COLOCACION EN SU SITIO, INCLUYE, GRUA PARA MANIOBRAS DE COLOCACION, SOLDADORA, PLANTA DE LUZ, PLOMEADO DE MUROS, MATERIAL, HERAMIENTA Y MANO DE OBRA"},{"$f":"CONCEPTOS(OPUSCAT!$C$3:$H$19,$A20,3)","v":"PZA"},{"$f":"CONCEPTOS(OPUSCAT!$C$3:$H$19,$A20,4)","v":137},{"$f":"CONCEPTOS(OPUSCAT!$C$3:$H$19,$A20,5)","v":0},null,{"$f":"D20*E20","v":0},null,{"$f":"+Hoja7!F9","v":32.06},null,{"$f":"+I20*$I$11","v":32.06}]
[null,null,null,{"$f":"+A19","v":"   ESTRUCTURAL"},null,null,{"$f":"SUM(G20:H20)","v":0}]
[]
[]
[{"$f":"+OPUSCAT!D7","v":"   ALBAÑILERIAS"}]
[{"$f":"+OPUSCAT!C8","v":"ALB-01"},{"$f":"CONCEPTOS(OPUSCAT!$C$3:$H$19,A25,2)","v":"      RESANE DE JUNTAS FRIAS ENTRE PANALES A BASE DE MATERIAL CEMEX COLOR BLANCO MULTIPLAST O SIMILAR Y MALLLA GEOTEXTIL AUTOADERENTE DE 15CM EN TODA LA JUNTA, ACABADO FLOTEADO, INCLUYE MATERIAL, HERAMIENTA Y MANO DE OBRA"},{"$f":"CONCEPTOS(OPUSCAT!$C$3:$H$19,$A25,3)","v":"ML"},{"$f":"CONCEPTOS(OPUSCAT!$C$3:$H$19,$A25,4)","v":3356.5},{"$f":"CONCEPTOS(OPUSCAT!$C$3:$H$19,$A25,5)","v":0},null,{"$f":"D25*E25","v":0},null,{"$f":"+Hoja7!F15","v":17.260000000000002},null,{"$f":"+I25*$I$11","v":17.260000000000002}]
[{"$f":"+OPUSCAT!C9","v":"ALB-02"},{"$f":"CONCEPTOS(OPUSCAT!$C$3:$H$19,A26,2)","v":"      RESANE DE GRIETAS EN LA SUPERFICIE DE MUROS, CON PRODUCTO CEMEX BLANCO MULTIPLAST O SIMILAR, ACBADO FLOTEADO, INCLUYE LAVADO DE LA SUPERFICIE, APLICACION DEL PRODUCTO ACABADO FLOTEADO COLOCADO CON LLANA MATERIAL, HERRAMIENTA Y MANO DE OBRA"},{"$f":"CONCEPTOS(OPUSCAT!$C$3:$H$19,$A26,3)","v":"M2"},{"$f":"CONCEPTOS(OPUSCAT!$C$3:$H$19,$A26,4)","v":5493.7},{"$f":"CONCEPTOS(OPUSCAT!$C$3:$H$19,$A26,5)","v":0},null,{"$f":"D26*E26","v":0},null,{"$f":"+Hoja7!F16","v":1},null,{"$f":"+I26*$I$11","v":1}]
[{"$f":"+OPUSCAT!C10","v":"ALB-03"},{"$f":"CONCEPTOS(OPUSCAT!$C$3:$H$19,A27,2)","v":"      SUMINISTRO Y COLOCACION DE SIKA FLEX 1A  O SIMILAR EN JUNTAS FRIAS DE PISO DE CONCRETO, INCLUYE MATERIAL, HERRAMIENTA Y MANO DE OBRA"},{"$f":"CONCEPTOS(OPUSCAT!$C$3:$H$19,$A27,3)","v":"ML"},{"$f":"CONCEPTOS(OPUSCAT!$C$3:$H$19,$A27,4)","v":3466.1},{"$f":"CONCEPTOS(OPUSCAT!$C$3:$H$19,$A27,5)","v":0},null,{"$f":"D27*E27","v":0},null,{"$f":"+Hoja7!F17","v":12.02},null,{"$f":"+I27*$I$11","v":12.02}]
[{"$f":"+OPUSCAT!C11","v":"ALB-04"},{"$f":"CONCEPTOS(OPUSCAT!$C$3:$H$19,A28,2)","v":"      SUMINISTRO Y APLICACIONDE PINTURA BLANCA EN TODA LA SUPERFICIE CALIDAD OSEL  O SIMILAR , INCLUYE MATERIAL, HERAMIENTA Y MANO DE OBRA"},{"$f":"CONCEPTOS(OPUSCAT!$C$3:$H$19,$A28,3)","v":"M2"},{"$f":"CONCEPTOS(OPUSCAT!$C$3:$H$19,$A28,4)","v":10987.4},{"$f":"CONCEPTOS(OPUSCAT!$C$3:$H$19,$A28,5)","v":0},null,{"$f":"D28*E28","v":0},null,{"$f":"+Hoja7!F18","v":14.75},null,{"$f":"+I28*$I$11","v":14.75}]
[{"$f":"+OPUSCAT!C12","v":"ALB-05"},{"$f":"CONCEPTOS(OPUSCAT!$C$3:$H$19,A29,2)","v":"      ELABORACION DE REMATE PARA RESIVIR MURO Y  ELABORADA A BASE DE MORTERO CEMNETO-ARENA 1:3 SECCION VARIABLE DE 0.10 A 0.05CM DE 0.07CM DE ANCHO INCLUYE CIMBRA, DESCIMBRA, MATERIAL, HERRAMIENTA Y MANO DE OBRA"},{"$f":"CONCEPTOS(OPUSCAT!$C$3:$H$19,$A29,3)","v":"ML"},{"$f":"CONCEPTOS(OPUSCAT!$C$3:$H$19,$A29,4)","v":1644},{"$f":"CONCEPTOS(OPUSCAT!$C$3:$H$19,$A29,5)","v":0},null,0,null,{"$f":"+Hoja7!F19","v":77.349999999999994},null,77.349999999999994]
[null,null,null,{"$f":"+A24","v":"   ALBAÑILERIAS"},null,null,{"$f":"SUM(G25:H29)","v":0}]
[{"$f":"+OPUSCAT!D13","v":"   TECHUMBRE"}]
[{"$f":"+OPUSCAT!C14","v":"TECH-01"},{"$f":"CONCEPTOS(OPUSCAT!$C$3:$H$19,A32,2)","v":"      ELABORACION DE TECHUMBRE DE LAMINA GALVANIZADA R-72 DE 20FT, POLINERIA DE 4\" EN TODA SU SECCION INCLUYE MATERIAL, HERAMIENTA Y MANO DE OBRA"},{"$f":"CONCEPTOS(OPUSCAT!$C$3:$H$19,$A32,3)","v":"M2"},{"$f":"CONCEPTOS(OPUSCAT!$C$3:$H$19,$A32,4)","v":2712.6},{"$f":"CONCEPTOS(OPUSCAT!$C$3:$H$19,$A32,5)","v":0},null,{"$f":"D32*E32","v":0},null,{"$f":"+Hoja7!F18","v":14.75},null,{"$f":"+I32*$I$11","v":14.75}]
[null,null,null,{"$f":"+A31","v":"   TECHUMBRE"},null,null,{"$f":"+SUM(G32:H32)","v":0}]
[]
[]
[{"$f":"+OPUSCAT!D15","v":"   ACABADOS"}]
[{"$f":"+OPUSCAT!C16","v":"ACA-01"},{"$f":"CONCEPTOS(OPUSCAT!$C$3:$H$19,A37,2)","v":"      COLOCACION DE PUERTA EN BASTIDOR EXISTENTE INCLUYE MONTAJE, HERRAMIENTA Y MANO DE OBRA"},{"$f":"CONCEPTOS(OPUSCAT!$C$3:$H$19,$A37,3)","v":"PZA"},{"$f":"CONCEPTOS(OPUSCAT!$C$3:$H$19,$A37,4)","v":137},{"$f":"CONCEPTOS(OPUSCAT!$C$3:$H$19,$A37,5)","v":0},null,{"$f":"D37*E37","v":0},null,{"$f":"+Hoja7!F16","v":1},null,{"$f":"+I37*$I$11","v":1}]
[null,null,null,{"$f":"+A36","v":"   ACABADOS"},null,null,{"$f":"SUM(G37:H37)","v":0}]
[]
[]
[{"$f":"+OPUSCAT!D17","v":"   ELECTRICO"}]
[{"$f":"+OPUSCAT!C18","v":"ELE-01"},{"$f":"CONCEPTOS(OPUSCAT!$C$3:$H$19,A42,2)","v":"       COLOCACION DE ROSETA EXTERIOR PARA ALUMBRADO, INCLUYE MATERIAL, HERRAMIENTA ,  MANO DE OBRA, CABE ACLARAR QUE EN RELACION A LAS DEMAS  INSTALACIONES ELECTRICAS COMO CABLEADO, TOMACORRIENTE, APAGADOR ESTOS YA ESTAN INTEGRADOS A LOS MUROS."},{"$f":"CONCEPTOS(OPUSCAT!$C$3:$H$19,$A42,3)","v":"PZA"},{"$f":"CONCEPTOS(OPUSCAT!$C$3:$H$19,$A42,4)","v":137},{"$f":"CONCEPTOS(OPUSCAT!$C$3:$H$19,$A42,5)","v":0},null,{"$f":"D42*E42","v":0},null,{"$f":"+Hoja7!F22","v":1},null,{"$f":"+I42*$I$11","v":1}]
[null,null,null,{"$f":"+A41","v":"   ELECTRICO"},null,null,{"$f":"SUM(G42:H42)","v":0}]
[]
[]
[]
["TOTAL DE PRESUPUESTO **              EXENTO DE I.V.A.                                         ",null,null,"TOTAL DE PRESUPUESTO",null,null,{"$f":"+G16+G21+G33+G38+G43+G30","v":0},null,{"$f":"+G47/datos!B4","v":0},null,null,null,null,null,null,null,null,null,null,null,null,null,{"$f":"+OPUSCAT!H1","v":0},{"$f":"+G47-W47","v":0}]

{"sheet":"Hoja1","index":4,"n_rows":47,"n_cols":9,"rows_kept":47,"cut":false,"hidden":true,"merged":[]}
[]
[]
[]
[null,"-","Capítulo",null,"CONSTRUCCIÓN DE VIVIENDA DE 44.56 M2, A BASE DE LOSA DE CIMENTACIÓN, MUROS DE BLOCK, TECHO DE VIGUETA Y BOVEDILLA, INSTALACIONES ELÉCTRICAS, HIDRÁULICAS Y SANITARIAS.",null,null,null,116600]
[null,"-","Subcapítulo",null,"   LOSA DE CIMENTACIÓN",null,null,null,21033.97]
[null,null,"Concepto","PC-01","      Limpia, trazo y nivelación.","M2",44.56,9.4499999999999993,421.09]
[null,null,"Concepto","PC-02","      Excavación a mano en terreno investigado en obra, cualquier profundidad, incluye afine de taludes y acarreo fuera de la obra de material no utilizable.","M3",9.8800000000000008,117.4,1159.9100000000001]
[null,null,"Concepto","PC-03","      Suministro de material de banco, bajo firmes, incluyendo producción, derechos, fletes, suministro en obra, acarreos en obra y afine. (volumen medido compacto).","M3",8.91,140,1247.4000000000001]
[null,null,"Concepto","PC-04","      Relleno y compactado de material con pisón de mano y agua en capas de espesor máximo de 20 cm, incluye acarreo en carretilla libre a 20 m.","M3",8.91,65.66,585.03]
[null,null,"Concepto","PC-05","      Losa de Cimentación de 9 cm de espesor, a base de concreto F'c=200  kg/cm2; t.m.a. 3/4\" hecho en obra; reforzado con  malla electrosoldada 6x6-10/10, plantilla de 5 cm de espesor a base de concreto F'c=100 kg/cm2 t.m.a. 3/4\", dentellón perimetral e intermedio a base de armex de 15x20 cm; anclaje a base de  bastones con varilla 3/8\"  @ 30 con 40 cm de largo donde se indique en los planos de proyecto,  acabado pulido, incluye  curado, vibrado, colado y todo lo necesario para su correcta ejecución.","M2",44.56,373.14,16627.12]
[null,null,"Concepto","PC-06","      Impermeabilización a base de producto epóxico color negro aplicado sobre los 12 cm del desplante y 20 cm del espesor de la losa y dentellón perimetral  en todo el perímetro, incluye: materiales, mano de obra, herramienta y equipo necesarios para su correcta ejecución.","ML",26.9,36.93,993.42]
[null,"-","Subcapítulo",null,"   MUROS",null,null,null,29572.67]
[null,null,"Concepto","MC-04","      Construcción de muro de block de 12x20x40 cm junteado con mortero cemento arena proporción 1:4, incluye: Muro de enrase, plomeado, relleno de huecos en contorno de ventanas a base de concreto F´c= 150 kg/cm2 hecho en obra t.m.a. 3/4\", materiales, mano de obra, herramienta, equipo y todo lo necesario para su correcta ejecución.","M2",81.040000000000006,219.73,17806.919999999998]
[null,null,"Concepto","MC-05","      Castillo de concreto F´c=150 kg/cm2 hecho en obra t.m.a. 3/4\", 12x12 cm de sección, armado con armex 12x12-4; incluye: Cimbra y descimbra; fabricación, colado y  curado del concreto; materiales, mano de obra, equipo y todo lo necesario para su correcta ejecución.","ML",43.38,134.97,5855]
[null,null,"Concepto","MC-06","      Cadena de cerramiento de concreto F´c=150 kg/cm2 hecho en obra t.m.a. 3/4\", 12x20 cm de sección, armada con armex 12X20-4; incluye: Cimbra y descimbra; fabricación, colado y  curado del concreto; materiales, mano de obra, equipo y todo lo necesario para su correcta ejecución.","ML",40.159999999999997,147.18,5910.75]
[null,"-","Subcapítulo",null,"   CUBIERTA",null,null,null,27898.15]
[null,null,"Concepto","CU-01","      Losa aligerada de 15 cm de espesor, a base de bovedilla de poliestireno y vigueta de alma abierta con armadura de acero diseño 10-36 de la marca deacero o similar, con patín de 12 cm de ancho por 5 cm de peralte, colado de capa de compresión de 4 cm con concreto F'c=200 kg/cm2, t.m.a. 3/4\", reforzado malla electrosoldada de 6x6-10/10, el concepto incluye: afine de la superficie superior  con acabado semipulido para recibir impermeabilización, cimbra y descimbra aparente, volado de concreto de 0.19 x 0.10 m, armado de con varilla de 3/8\", 1 varilla longitudinal y bastones @ .30m de .40m de longitud, colado, vibrado, curado y todo lo necesario para su correcta ejecución.","M2",46.07,471.13,21704.959999999999]
[null,null,"Concepto","CU-02","      Impermeabilización de losa de azotea a base de impermeabilizante elastomerico marca termoteck o similar de 3 años de garantía, a razón de 1 m2/lt, y  tela de refuerzo sencillo, incluye limpieza y preparación de la superficie.","M2",46.07,134.43,6193.19]
[null,"-","Subcapítulo",null,"   ACABADOS",null,null,null,7729.03]
[null,null,"Concepto","AC-01","      Aplanado de yeso en plafones, de 1.5 cm de espesor promedio, a plomo y regla, acabado pulido, reforzada con malla pollera en toda el área incluye: perfilado de aristas y remate en columnas, trabes y muros.","M2",39.71,144.56,5740.48]
[null,null,"Concepto","AC-02","      Sardinel de 10x10 cm a  base de concreto hidráulico de F'c=150 kg/cm2 t.m.a. 3/4\",con anclas de varilla corrugada de 3/8\" según especificaciones de proyecto. Incluye: Herramienta, mano de obra y todo lo necesario para su correcta ejecución.","ML",1.92,78.08,149.91]
[null,null,"Concepto","AC-03","      Suministro y colocación de azulejo de 20x30cm de color blanco de la marca porcelanite o similar asentado con cemento crest o similar, boquilla de 2 mm a base de junta crest anti-hongo o similar.  Incluye: Herramienta, mano de obra y todo lo necesario para su correcta ejecución.","M2",4,249.33,997.32]
[null,null,"Concepto","AC-04","      Suministro y colocación de piso antiderrapante de 20x20cm de color blanco de la marca porcelanite o similar asentado con cemento crest o similar, boquilla de 2 mm a base de junta crest anti-hongo o similar. Incluye: Herramienta, mano de obra y todo lo necesario para su correcta ejecución.","M2",3.75,217.32,814.95]
[null,null,"Concepto","AC-05","      Colocación de placa de cerámica en medidas de 20x20 cm, con cemento crest, en muro de fachada. Incluye; Material, herramienta, mano de obra y todo lo necesario para su correcta ejecución.","M2",1,26.37,26.37]
[null,"-","Subcapítulo",null,"   PUERTAS Y VENTANAS",null,null,null,10200.629999999999]
[null,null,"Concepto","PV-01","      Suministro e instalación de puerta tipo multypanel 0.90x2.06m con marco metálico de 0.96x2.10m fabricado a base de perfil tubular M-225., chapa tipo bola con llave para exterior modelo MH52T3  marca fanal o similar acabado en latón brillante para exterior, dos bisagras de 3\", pintura esmalte anticorrosivo color blanco en el marco metálico, el concepto incluye perfilado del hueco previo a su colocación con mortero cemento-arena 1:4. Incluye: Herramienta, mano de obra y todo lo necesario para su correcta ejecución.","PZA",1,1875.8,1875.8]
[null,null,"Concepto","PV-02","      Suministro e instalación de puerta de tambor 0.80x2.06m con marco metálico de 0.86x2.10m fabricado a base de perfil tubular M-225., chapa tipo bola para interior  marca fanal o similar, dos bisagras de 3\", pintura esmalte anticorrosivo color blanco en el marco metálico, el concepto incluye perfilado del hueco previo a su colocación con mortero cemento-arena 1:4. Incluye: Herramienta, mano de obra y todo lo necesario para su correcta ejecución.","PZA",2,1066.69,2133.38]
[null,null,"Concepto","PV-03","      Suministro e instalación de puerta de tambor 0.70x2.06m con marco metálico de 0.76x2.10m fabricado a base de perfil tubular M-225., chapa tipo bola para interior  marca fanal o similar, dos bisagras de 3\", pintura esmalte anticorrosivo color blanco en el marco metálico, el concepto incluye perfilado del hueco previo a su colocación con mortero cemento-arena 1:4. Incluye: Herramienta, mano de obra y todo lo necesario para su correcta ejecución.","PZA",1,996.58,996.58]
[null,null,"Concepto","PV-04","      Suministro y colocación  de ventana corrediza de 0.83x1.05m a base de perfil de aluminio anodizado natural  de 1 1/2\" con cristal claro de 3mm con un fijo lateral y un corredizo, incluye perfilado del hueco, previo a su colocación a base de mortero cemento-arena proporción  1:4. Incluye: Herramienta, mano de obra y todo lo necesario para su correcta ejecución.","PZA",3,987.18,2961.54]
[null,null,"Concepto","PV-05","      Suministro y colocación  de ventana corrediza de 0.60x0.40m a base de perfil de aluminio anodizado natural  de 1 1/2\" con cristal claro de 3mm con un fijo lateral y un corredizo, incluye perfilado del hueco previo a su colocación a base de mortero cemento-arena proporción  1:4. Incluye: Herramienta, mano de obra y todo lo necesario para su correcta ejecución.","PZA",1,698.79,698.79]
[null,null,"Concepto","PV-06","      Suministro e instalación de puerta tipo multypanel 0.80x2.06m con marco metálico de 0.86x2.10m fabricado a base de perfil tubular M-225., chapa tipo bola con llave para exterior modelo MH52T3  marca fanal o similar acabado en latón brillante para exterior, dos bisagras de 3\", pintura esmalte anticorrosivo color blanco en el marco metálico, el concepto incluye perfilado del hueco previo a su colocación con mortero cemento-arena 1:4. Incluye: Herramienta, mano de obra y todo lo necesario para su correcta ejecución.","PZA",1,1534.54,1534.54]
[null,"-","Subcapítulo",null,"   INSTALACIONES ELÉCTRICAS",null,null,null,7635.94]
[null,null,"Concepto","IE-01","      Suministro y colocación de centro de carga de dos circuitos  con una pieza de interruptor sencillo de 1x30 amperes, tubería galvanizada conduit pared delgada de 3/4\", el concepto incluye ranurado, resanado con mortero cemento-arena 1:4, prueba del correcto funcionamiento de las instalaciones y todo lo necesario para su correcto funcionamiento.","PZA",1,481.41,481.41]
[null,null,"Concepto","IE-02","      Salida eléctrica para tomacorriente, incluye; Contacto doble, tapa, poliducto eléctrico, cableado con cable thw #12, ranurado, sujeción de poliducto, mano de obra y equipo.","SAL",9,358.32,3224.88]
[null,null,"Concepto","IE-03","      Salida eléctrica para apagador sencillo,  incluye: tapa de una via, poliducto eléctrico naranja reforzado de 1/2\", cableado con cable thw #12, ranurado, resanado con mortero cemento-arena 1:4, sujeción de poliducto, mano de obra y equipo.","SAL",3,310.39,931.17]
[null,null,"Concepto","IE-04","      Salida eléctrica para apagador doble, incluye; tapa de dos vías, poliducto eléctrico naranja reforzado de 1/2\", cableado con cable thw #12, ranurado, resanado con mortero cemento-arena 1:4, sujeción de poliducto, mano de obra y equipo.","SAL",2,355.65,711.3]
[null,null,"Concepto","IE-05","      Salida eléctrica para lámpara,  incluye; cableado con cable thw #12,  caja octogonal de 4\", con poliducto naranja reforzado de 1/2\", cableado, ranurado, resanado con mortero cemento-arena 1:4, sujeción de poliducto, mano de obra y equipo.","SAL",7,279.08,1953.56]
[null,null,"Concepto","IE-06","      Suministro e instalación de foco incandescente de 100 watts según proyecto, incluye: la roseta de porcelana de 4\" y todo lo necesario para su correcta instalación.","PZA",7,47.66,333.62]
[null,"-","Subcapítulo",null,"   INSTALACIONES HIDRÁULICAS Y SANITARIAS",null,null,null,12529.61]
[null,null,"Concepto","IHS-05","      Salidas para instalación sanitaria de 1 1/2\",  2\" y 4\" para ventila,  lavabo, sanitario, tarja y regadera, tubería de pvc, conexiones, pegamento, ranurado, resanado con mortero cemento-arena 1:4, pendiente, materiales, mano de obra, herramienta y equipo.","SAL",5,364.4,1822]
[null,null,"Concepto","IHS-07","      Salidas para instalación hidráulica  para  regadera agua fría y caliente, lavabo, sanitario,  tarja o zinc, con tubería cpvc de 1/2\" marca duralon o similar, el concepto incluye: 2 Dispositivos economizadores de agua (DISEA M) marca EEFIMEX ó similar en regadera y lavabo, limpieza,  conexiones, ranurado, pendiente, materiales, mano de obra, herramienta,  equipo, resanado con mortero cemento-arena 1:4, prueba del correcto funcionamiento de las instalaciones y todo lo necesario para su correcto funcionamiento.","SAL",5,442.83,2214.15]
[null,null,"Concepto","IHS-08","      Suministro e instalación de sanitario marca lamosa o similar línea económica  en color blanco, incluye asiento, pijas, cuello de cera, manguera flexible, llave cromada de 1/2\".","PZA",1,1567.81,1567.81]
[null,null,"Concepto","IHS-09","      Suministro e instalación de lavabo marca lamosa o similar línea económica  en color blanco, incluye: Llave mezcladora marca helvex o similar línea económica, juego de patas, soportes, manguera flexible, llave cromada de 1/2\", cespol bote.","PZA",1,1203.52,1203.52]
[null,null,"Concepto","IHS-10","      Suministro e instalación de regadera línea económica  incluye llaves de empotrar, manerales,  brazo y chapetón.","PZA",1,1723.06,1723.06]
[null,null,"Concepto","IHS-11","      Construcción de registro sanitario de 46x45cm de medida interna, a base de ladrillo recocido común de la región de 7x14x28 cm, junteado con mortero cal-arena 1:5 + 10% de cemento, base y tapa a base de concreto F'c=150 kg/cm2 con t.m.a. 3/4\" reforzado con malla electrosoldada 6x6-10/10 el concepto incluye: enjarre interior con mortero cemento-arena 1:3, fabricación y colocación de dos jaladeras para la tapa a base de alambrón de 1/4\", con pases a base de poliducto de 1/2\". y todo lo necesario para su correcta ejecución.","PZA",1,671.94,671.94]
[null,null,"Concepto","IHS-12","      Suministro e instalación de tinaco de 600 lt de la marca rotoplas o similar con el sistema de 3 capas para garantizar una vida útil de 35 años, con todos los accesorios como jarro de aire, flotador #5, válvula de llenado ¾\", multiconector con válvula de esfera, tuerca unión y válvula check, incluye base para nivelar tinaco (detalle plano), la alimentación hidráulica por medio de tubería cpvc de 1/2\" y todo lo necesario para su correcto funcionamiento.","PZA",1,2027.04,2027.04]
[null,null,"Concepto","IHS-13","      Suministro e instalación de lavadero doble de empotrar, el concepto incluye; firme de concreto sencillo, murete de block de 12x20x40 cm, segun proyecto, la salida sanitaria con tubería pvc de 2\" y la salida hidráulica con tubería cpvc de 1/2\", llave de jardín de 1/2\", dispositivo economizador de agua (DISEA M) marca EEFIMEX ó similar,  resanado con mortero cemento-arena 1:4  y todo lo necesario para su correcto funcionamiento.","PZA",1,1300.0899999999999,1300.0899999999999]

{"sheet":"Hoja2","index":5,"n_rows":0,"n_cols":0,"rows_kept":0,"cut":false,"hidden":true,"merged":[]}

{"sheet":"Hoja3","index":6,"n_rows":0,"n_cols":0,"rows_kept":0,"cut":false,"hidden":true,"merged":[]}

{"sheet":"Hoja4","index":7,"n_rows":32,"n_cols":6,"rows_kept":32,"cut":false,"hidden":true,"merged":[]}
["-","Capítulo",null,"CONSTRUCCIÓN DE RECAMARA ADICIONAL  DE 16.48 M2 URBANA  A BASE DE LOSA DE CIMENTACIÓN, MUROS DE BLOCK, TECHO DE VIGUETA E INSTALACIONES ELÉCTRICAS, EN LOS MUNICIPIOS  DE SONORA."]
["-","Subcapítulo","1.-","      LOSA DE CIMENTACION"]
[null,"Concepto","PC-01U","      Limpia, trazo y nivelación.","M2",16.48]
[null,"Concepto","PC-02U","      Excavación a mano en terreno investigado en obra, cualquier profundidad, incluye afine de taludes y acarreo fuera de la obra de material no utilizable.","M3",0.38]
[null,"Concepto","PC-05U","      Losa de Cimentación de 9 cm de espesor, a base de concreto F'c=200  kg/cm2; t.m.a. 3/4\" hecho en obra; reforzado con  malla electrosoldada 6x6-10/10, plantilla de 5 cm de espesor a base de concreto F'c=100 kg/cm2 t.m.a. 3/4\", dentellón perimetral e intermedio a base de armex de 15x20 cm; anclaje a base de  bastones con varilla corrugada 3/8\" grado 42 o 5/16 DA 6000  @ 30 con 40 cm de largo donde se indique en los planos de proyecto,  acabado pulido, incluye: fumigacion antitermitas con fumigante aditivo adherente termidor o similar, curado, vibrado, colado y todo lo necesario para su correcta ejecución.","M2",16.48]
[null,"Concepto","PC-06U","      Impermeabilización a base de producto epóxico color negro aplicado sobre los 12 cm del desplante y 20 cm del espesor de la losa y dentellón perimetral  en todo el perímetro, incluye: materiales, mano de obra, herramienta y equipo necesarios para su correcta ejecución.","Ml",15.76]
[null,"Concepto","PC-07U","      Afine, nivelacion y compactacion de terreno natural para desplante de losa de cimentacio, incluye todo lo necesario para su correcta ejecucion.","M2",16.48]
["-","Subcapítulo","2.-","      ALBAÑILERIA"]
[null,"Concepto","MC-01U","      Construcción de muro de block de 12x20x40 cm junteado con mortero cemento arena proporción 1:4, incluye; Muro de enrase, plomeado, relleno de huecos en contorno de ventanas a base de concreto F´c= 150 kg/cm2 hecho en obra t.m.a. 3/4\", materiales, mano de obra, herramienta, equipo, con boquilla cortada a hueso.","M2",30.55]
[null,"Concepto","MC-02U","      Castillo K-1 de concreto F´c=150 kg/cm2 hecho en obra t.m.a. 3/4\", 12x12 cm de sección, armado con armex 12x12-4; incluye: cimbra aparente y descimbra; fabricación, colado y  curado del concreto; materiales y mano de obra, deberá de quedar con acabado final aparente.","Ml",10.06]
[null,"Concepto","MC-02UA","      Castillo K-2 ahogados de 2.50 ML de altura incluye el pretil, con  concreto F´c=150 kg/cm2 hecho en obra t.m.a. 3/4\", con una varilla corrugada de refuerzo de 3/8\";  armado, colado y  vibrado del concreto; materiales y mano de obra,.","Ml",10.029999999999999]
[null,"Concepto","MC-03U","      Cadena de cerramiento de concreto F´c=150 kg/cm2 hecho en obra t.m.a. 3/4\", 12x20 cm de sección, armada con armex 12X20-4; incluye: cimbra aparente y descimbra; fabricación, colado y  curado del concreto; materiales y mano de obra, deberá de quedar con acabado final aparente.","Ml",15.76]
[null,"Concepto","MC-04U","      Construcción de pretil  a base de block de 12x20x40 cm junteado con mortero cemento arena proporción 1:4, incluye; plomeado, relleno de huecos en parte superior y en parte inferior para nivelar con concreto F´c= 150 kg/cm2 hecho en obra t.m.a. 3/4\", materiales, mano de obra, herramienta, equipo, con boquilla cortada a hueso.","M2",4.03]
[null,"Concepto","MC-05U","      Construcción de diamantes a base de  mortero cemento-arena 1:4  2.5 cm de e spesor promedio  acabado floteado para recibir impermeabilizacion, incluye trazo y ejecucion de pendientes, elevacion de materiales hasta 3.00 m, material, herramienta y mano de obra.","m2",2.27]
[null,"Concepto","MC-06U","      Suministro y Colocacion de gargola tipo cuadrada sencilla incluye demolicion, mortero cemento-arena 1:4 y todo lo necesario para su correcta instalacion.","pza",2]
["-","Subcapítulo","3.-","      CUBIERTA"]
[null,"Concepto","CU-01U","      Losa aligerada de 15 cm de espesor, a base de bovedilla de poliestireno y vigueta de alma abierta con armadura de acero diseño 10-36 de la marca deacero o similar, con patín de 12 cm de ancho por 5 cm de peralte, colado de capa de compresión de 4 cm con concreto F'c=200 kg/cm2, t.m.a. 3/4\", reforzado malla electrosoldada de 6x6-10/10, el concepto incluye: afine de la superficie superior  con acabado semipulido para recibir impermeabilización, cimbra y descimbraaparente, colado, vibrado, curado y todo lo necesario para su correcta ejecución. Para la ejecucion de este concepto el beneficiario aportara el importe de 4,000 pesos en la compra de los materiales alambre recocido, curacreto, malla electrosoldada 6x6 - 10/10, Vigueta alma abierta con armadura 10-36 y Bovedilla de poliestireno de 61x122 x11 cms de espesor","M2",16.48]
[null,"Concepto","CU-02U","      Impermeabilización de losa de azotea a base de impermeabilizante elastomerico de 3 años de garantía,a razón de 1 m2/lt, y  tela de refuerzo sencillo, incluye limpieza y preparación de la superficie.","M2",16.48]
["-","Subcapítulo","4.-","      ACABADOS"]
[null,"Concepto","AC-01U","      Chaflán de 10x10 cms. con pasta de cemento-arena prop. 1:4, según detalle indicado en los planos, Incluye: Material, mano de obra, herramienta y todo lo necesario para su correcta ejecución.","ML",8.92]
[null,"Concepto","AC-03U","      Aplanado de yeso en plafones, de 1.5 cm de espesor promedio, a plomo y regla, acabado pulido, reforzada con malla pollera en toda el área incluye: perfilado de aristas y remate en columnas, trabes y muros.","M2",14.59]
[null,"Concepto","AC-09U","      Cemento blanco, en muro de fachada para colocacion de placa Incluye; Material, herramienta, mano de obra y todo lo necesario para su correcta ejecución.","Pza",1]
[null,"Concepto","AC-14U","      Pintura vinílica lavable en muros y plafond  incluye: material, limpieza, rebabeado, preparación de la superficie, aplicación de sellador vinílico y dos manos de pintura.","M2",92.95]
[null,"Concepto","AC-13U","      Aplanado de mezcla en muros, a base de mortero cemento arena 1:3,  acabado fino floteado , incluye: material, mano de obra, remates y emboquillado.","m2",78.36]
["-","Subcapítulo","5.-","      PUERTAS Y VENTANAS"]
[null,"Concepto","PV-04U","      Suministro y colocación  de ventana corrediza de 0.83x1.05m a base de perfil de aluminio anodizado natural  de 1 1/2\" con cristal claro de 3mm con un fijo lateral y un corredizo, incluye perfilado del hueco, previo a su colocación a base de mortero cemento-arena proporción  1:4. Incluye: Herramienta, mano de obra y todo lo necesario para su correcta ejecución.","Pza",1]
[null,"Concepto","PV-06U","      Suministro e instalación de puerta de 0.90x2.10 mts, tipo multypanel lisa, fabricado con hoja de acero liso galvanizado cal. 28, con bastidor de madera de pino estufado, terminado en color blanco, relleno de esouma rigida de poliuretano con una densidad de 32 a 34 kg/m3 .,incluye marco metálico fabricado a base de perfil tubular M-225,chapa tipo bola con llave para exterior  acabado en latón brillante para exterior, dos bisagras de 3\", pintura esmalte anticorrosivo color blanco, perfilado del hueco previo a su colocación con mortero cemento-arena 1:4. Herramienta, mano de obra y todo lo necesario para su correcta ejecución.","Pza",1]
["-","Subcapítulo","6.-","      INSTALACIONES ELECTRICAS"]
[null,"Concepto","IE-02U","      Salida eléctrica para tomacorriente, incluye; Contacto doble, tapa, poliducto eléctrico, cableado, ranurado, sujeción de poliducto, mano de obra y equipo.","Sal",1]
[null,"Concepto","IE-03U","      Salida eléctrica para apagador sencillo,  incluye: tapa de una via, poliducto eléctrico naranja reforzado de 1/2\", cableado con cable thw #12, ranurado, resanado con mortero cemento-arena 1:4, sujeción de poliducto, mano de obra y equipo.","Sal",1]
[null,"Concepto","IE-05U","      Salida eléctrica para lámpara,  incluye; la roseta de porcelana de 4\" , cableado con cable thw #12,  caja octogonal de 4\", con poliducto naranja reforzado de 1/2\", cableado, ranurado, resanado con mortero cemento arena 1:4, sujeción de poliducto, mano de obra y equipo.","Sal",1]
[null,"Concepto","IE-06U","      Suministro  de foco fluorescente espiral 23 w. De luz fria con 100 W de iluminacion según proyecto,","Pza",1]

{"sheet":"datos","index":8,"n_rows":10,"n_cols":8,"rows_kept":10,"cut":false,"hidden":true,"merged":[]}
["NUMERO"]
["LOCALIDAD"]
["MUNICIPIO"]
["ACCIONES",137]
[]
["F.INICIO",null,null,null,null,null,{"$f":"+G5+1","v":1},{"$f":"CHAR(G6)","v":"\u0001"}]
["F.TERMINO",{"$f":"IF(+B6=\"\",\"\",+B6+B8-1)","v":""},null,null,null,null,{"$f":"+G6+1","v":2},{"$f":"CHAR(G7)","v":"\u0002"}]
["PLAZO",{"$f":"5*30","v":150},null,null,null,null,{"$f":"+G7+1","v":3},{"$f":"CHAR(G8)","v":"\u0003"}]
["DESCRIPCION","MONTAJE DE 137(CIENTO TREINTA Y SIETE)  RECAMARA ADICIONALES  DE 16.65 M2 URBANA  A BASE DE MODULOS PREFABRICADOS , TECHO DE LAMINA GALVANIZADA E INSTALACIONES ELÉCTRICAS, EN  VARIAS LOCALIDADES DE LOS MUNICIPIOS DE ALAMOS, BACUM, HUATABAMPO, MAGDALENA, MAZATAN, SAN MIGUEL DE HORCASITAS Y URES  DEL ESTADO DE SONORA."]
["F. PRESENTACION"]

{"sheet":"OPUS","index":9,"n_rows":49,"n_cols":8,"rows_kept":49,"cut":false,"hidden":true,"merged":[]}
["Capítulo","-",null,"CONSTRUCCIÓN DE  UNIDAD BASICA DE VIVIENDA URBANA DE 42.53 M2, A BASE DE LOSA DE CIMENTACIÓN, MUROS DE BLOCK, TECHO DE VIGUETA Y BOVEDILLA, INSTALACIONES ELÉCTRICAS, HIDRÁULICAS Y SANITARIAS. EN EL MUNICIPIO DE __________ SONORA.",null,null,null,{"$f":"SUM(H3:H50)","v":116459.57}]
["Subcapítulo","-","1.-","   LOSA DE CIMENTACION"]
["Concepto",null,"PC-01U","      Limpia, trazo y nivelación.","M2",22.09,12.82,{"$f":"+F3*G3","v":283.19}]
["Concepto",null,"PC-02U","      Excavación a mano en terreno investigado en obra, cualquier profundidad, incluye afine de taludes y acarreo fuera de la obra de material no utilizable.","M3",0.36,139.97,{"$f":"+F4*G4","v":50.39}]
["Concepto",null,"PC-05U","      Losa de Cimentación de 9 cm de espesor, a base de concreto F'c=200  kg/cm2; t.m.a. 3/4\" hecho en obra; reforzado con  malla electrosoldada 6x6-10/10, plantilla de 5 cm de espesor a base de concreto F'c=100 kg/cm2 t.m.a. 3/4\", dentellón perimetral e intermedio a base de armex de 15x20 cm; anclaje a base de  bastones con varilla corrugada 3/8\" grado 42 o 5/16 DA 6000  @ 30 con 40 cm de largo donde se indique en los planos de proyecto,  acabado pulido, incluye: fumigacion antitermitas con fumigante aditivo adherente termidor o similar, curado, vibrado, colado y todo lo necesario para su correcta ejecución.","M2",22.09,515.16,11379.88]
["Concepto",null,"PC-06U","      Impermeabilización a base de producto epóxico color negro aplicado sobre los 12 cm del desplante y 9 cm del espesor de la losa en todo el perímetro, incluye: materiales, mano de obra, herramienta y equipo necesarios para su correcta ejecución.","Ml",22.14,32.47,718.89]
["Concepto",null,"PC-07U","      Afine, nivelacion y compactacion de terreno natural para desplante de losa de cimentacio, incluye todo lo necesario para su correcta ejecucion.","M2",22.09,15.55,343.5]
["Subcapítulo","-","2.-","   ALBAÑILERIA",null,null,null,0]
["Concepto",null,"MC-01U","      Construcción de muro de block de 12x20x40 cm junteado con mortero cemento arena proporción 1:4, incluye; plomeado, relleno de huecos en contorno de ventanas a base de concreto F´c= 150 kg/cm2 hecho en obra t.m.a. 3/4\", materiales, mano de obra, herramienta, equipo, deberá quedar acabado comun.","M2",34.57,349.96,12098.12]
["Concepto",null,"MC-02U","      Castillo K-1 de concreto F´c=150 kg/cm2 hecho en obra t.m.a. 3/4\", 12x12 cm de sección, armado con armex 12x12-4; incluye: cimbra aparente y descimbra; fabricación, colado y  curado del concreto; materiales y mano de obra, deberá de quedar con acabado final aparente.","Ml",19.7,177.62,3499.11]
["Concepto",null,"MC-02UA","      Castillo K-2 ahogados de 2.50 ML de altura incluye el pretil, con  concreto F´c=150 kg/cm2 hecho en obra t.m.a. 3/4\", con una varilla corrugada de refuerzo de 3/8\";  armado, colado y  vibrado del concreto; materiales y mano de obra,.","Ml",7.03,52.92,372.03]
["Concepto",null,"MC-08U","      Cadena intermedia ubicada a la quinta hilada a base block dala de 12x20x40 cms, relleno con concreto F'c=150 kg/cm2 y una varilla corrugada de 3/8\" el concepto incluye block dala de 12x20x40 cms, mortero cemento -arena 1:4, materiales, mano de obra, herramienta, equipo y todo lo necesario para su correcta ejecucion.","ml",19.47,145.16999999999999,2826.46]
["Concepto",null,"MC-03U","      Cadena de cerramiento de concreto F´c=150 kg/cm2 hecho en obra t.m.a. 3/4\", 12x20 cm de sección, armada con armex 12X20-4; incluye: cimbra aparente y descimbra; fabricación, colado y  curado del concreto; materiales y mano de obra, deberá de quedar con acabado final aparente.","Ml",22.14,222.33,4922.3900000000003]
["Concepto",null,"MC-09U","      Construcción de muro de enrase a base de block de 12x20x40 cm junteado con mortero cemento arena proporción 1:4, incluye; materiales, mano de obra, herramienta, equipo, deberá quedar acabado comun.","M2",5.6,415.8,2328.48]
["Concepto",null,"MC-04U","      Construcción de pretil  a base de block de 12x20x40 cm junteado con mortero cemento arena proporción 1:4, incluye; plomeado, relleno de huecos en parte superior y en parte inferior para nivelar con concreto F´c= 150 kg/cm2 hecho en obra t.m.a. 3/4\", materiales, mano de obra, herramienta, equipo, con boquilla cortada a hueso.","M2",1.2,396.58,475.9]
["Concepto",null,"AC-01U","      Chaflán de 10x10 cms. con pasta de cemento-arena prop. 1:4, según detalle indicado en los planos, Incluye: Material, mano de obra, herramienta y todo lo necesario para su correcta ejecución.","ML",13.11,80.45,1054.7]
["Concepto",null,"MC-07U","      Fabricacion de base para tinaco de 750 litros a base de concreto F'c=150 kg/cm de 1.00  x 1.00 mts por espesor variable de 10 cms a  14 cms el concepto incluye cimbra, descimbra, curado, vibrado y acabado pulido para recibir impermeabilizacion y todo lo necesario para su correcto funcionamiento.","pza",1,921.81,921.81]
["Subcapítulo","-","3.-","   CUBIERTA",null,null,null,0]
["Concepto",null,"CU-01U","      Losa aligerada de 15 cm de espesor, a base de bovedilla de poliestireno con densidad de 12 kg/m3 y vigueta de alma abierta con armadura de acero diseño 10-36 de la marca deacero o similar, con patín de 12 cm de ancho por 5 cm de peralte, colado de capa de compresión  variable de 7 a 4 cms con concreto F'c=200 kg/cm2, t.m.a. 3/4\", reforzado malla electrosoldada de 6x6-10/10, el concepto incluye: afine de la superficie superior  con acabado semipulido para recibir impermeabilización, cimbra y descimbraaparente, colado, vibrado, curado y todo lo necesario para su correcta ejecución.","M2",23.4,609.91999999999996,14272.13]
["Concepto",null,"CU-02U","      Impermeabilización de losa de azotea a base de impermeabilizante elastomerico de 3 años de garantía,a razón de 1 m2/lt, y  tela de refuerzo doble, incluye limpieza y preparación de la superficie.","M2",23.4,80.69,1888.15]
["Subcapítulo","-","4.-","   ACABADOS",null,null,null,0]
["Concepto",null,"AC-02U","      Sardinel de 10x10 cm a  base de concreto hidráulico de F'c=150 kg/cm2 t.m.a. 3/4\". Incluye: Herramienta, mano de obra y todo lo necesario para su correcta ejecución.","Ml",1.26,48,60.48]
["Concepto",null,"AC-03U","      Aplanado de yeso en plafones, de 1.5 cm de espesor promedio, a plomo y regla, acabado pulido, reforzada con malla pollera en toda el área incluye: perfilado de aristas y remate en columnas, trabes y muros.","M2",19.440000000000001,202.72,3940.88]
["Concepto",null,"AC-04U","      Suministro y colocación de azulejo de 20x30cm de color blanco asentado con cemento crest o similar, boquilla de 2 mm a base de junta crest anti-hongo o similar.  Incluye: Herramienta, mano de obra y todo lo necesario para su correcta ejecución.","M2",6.19,410.65,2541.92]
["Concepto",null,"AC-05U","      Suministro y colocación de piso antiderrapante de 20x20cm de color blanco de la marca porcelanite o similar asentado con cemento crest o similar, boquilla de 2 mm a base de junta crest anti-hongo o similar. Incluye: Herramienta, mano de obra y todo lo necesario para su correcta ejecución.","M2",3.33,421.57,1403.83]
["Concepto",null,"AC-13UA","      Aplanado grueso en muros exteriores e interiroes  a base de  mortero cemento arena 1:4 en un espesor minimo de 1.5 cms , y terminado fino floteado con mortero cemento-arena 1:3 incluye: perfilado de aristas, remates, material, mano de obra y emboquillado.","m2",99.36,130.63999999999999,12980.39]
["Concepto",null,"AC-14U","      Pintura vinílica lavable en muros exteriores, interiores y plafond de yeso, incluye: material, limpieza, rebabeado, preparación de la superficie, aplicación de sellador vinílico y dos manos de pintura.","M2",118.8,34.11,4052.27]
["Subcapítulo","-","5.-","   PUERTAS Y VENTANAS",null,null,null,0]
["Concepto",null,"PV-01U","      Suministro e instalación de puerta de 0.90x2.06 mts, tipo multypanel lisa, fabricado con hoja de acero liso galvanizado cal. 28, con bastidor de madera de pino estufado, terminado en color blanco, relleno de esouma rigida de poliuretano con una densidad de 32 a 34 kg/m3 .,incluye marco metálico de 0.96x2.10m fabricado a base de perfil tubular M-225, chapa tipo bola con llave para exterior modelo MH52T3  marca fanal o similar acabado en latón brillante para exterior, dos bisagras de 3\", pintura esmalte anticorrosivo color blanco, perfilado del hueco previo a su colocación con mortero cemento-arena 1:4. Herramienta, mano de obra y todo lo necesario para su correcta ejecución.","Pza",1,3179.97,3179.97]
["Concepto",null,"PV-03U","      Suministro e instalación de puerta de tambor 0.70x2.06m con marco metálico de 0.76x2.10m fabricado a base de perfil tubular M-225., chapa tipo bola para interior  marca fanal o similar, dos bisagras de 3\", pintura esmalte anticorrosivo color blanco en el marco metálico, el concepto incluye perfilado del hueco previo a su colocación con mortero cemento-arena 1:4. Incluye: Herramienta, mano de obra y todo lo necesario para su correcta ejecución.","Pza",1,1773.91,1773.91]
["Concepto",null,"PV-04U","      Suministro y colocación  de ventana corrediza de 0.83x1.05m a base de perfil de aluminio anodizado natural  de 1 1/2\" con cristal claro de 3mm con un fijo lateral y un corredizo, incluye: perfilado del hueco, previo a su colocación a base de mortero cemento-arena proporción  1:4. silicon, Herramienta, mano de obra y todo lo necesario para su correcta ejecución.","Pza",1,1313,1313]
["Concepto",null,"PV-05U","      Suministro y colocación  de ventana corrediza de 0.60x0.40 m a base de perfil de aluminio anodizado natural  de 1 1/2\" con cristal claro de 3mm con un fijo lateral y un corredizo, incluye: perfilado del hueco, previo a su colocación a base de mortero cemento-arena proporción  1:4. silicon, Herramienta, mano de obra y todo lo necesario para su correcta ejecución.","Pza",1,915.37,915.37]
["Concepto",null,"PV-06U","      Suministro e instalación de puerta de lamina troquelada cal. 20 de 0.80 x 2.06 mts. Incluye: marco metálico de 0.86x2.10m fabricado a base de perfil tubular M-225., chapa con llave para exterior acabado en latón brillante para exterior, dos bisagras de 3\", pintura esmalte anticorrosivo color blanco en el marco metálico, el concepto incluye perfilado del hueco previo a su colocación con mortero cemento-arena 1:4. Incluye: Herramienta, mano de obra y todo lo necesario para su correcta ejecución.","Pza",1,2131.09,2131.09]
["Subcapítulo","-","6.-","   INSTALACIONES ELECTRICAS",null,null,null,0]
["Concepto",null,"IE-01U","      Suministro y colocación de centro de carga de dos circuitos  con dos piezas de interruptor sencillo de 1x30 amperes, tubería galvanizada conduit pared delgada de 3/4\", el concepto incluye ranurado, resanado con mortero cemento-arena 1:4, prueba del correcto funcionamiento de las instalaciones y todo lo necesario para su correcto funcionamiento.","Pza",1,551.73,551.73]
["Concepto",null,"IE-02U","      Salida eléctrica para tomacorriente, incluye; Contacto doble, tapa, poliducto eléctrico, cableado, ranurado, sujeción de poliducto, mano de obra y equipo.","Sal",5,391.15,1955.75]
["Concepto",null,"IE-03U","      Salida eléctrica para apagador sencillo,  incluye: tapa de una via, poliducto eléctrico naranja reforzado de 1/2\", cableado con cable thw #12, ranurado, resanado con mortero cemento-arena 1:4, sujeción de poliducto, mano de obra y equipo.","Sal",1,436.13,436.13]
["Concepto",null,"IE-04U","      Salida eléctrica para apagador doble, incluye; tapa de dos vías, poliducto eléctrico naranja reforzado de 1/2\", cableado con cable thw #12, ranurado, resanado con mortero cemento-arena 1:4, sujeción de poliducto, mano de obra y equipo.","Sal",2,452.25,904.5]
["Concepto",null,"IE-05U","      Salida eléctrica para lámpara,  incluye; cableado con cable thw #12,  caja octogonal de 4\", con poliducto naranja reforzado de 1/2\", cableado, ranurado, resanado con mortero cemento arena 1:4, sujeción de poliducto, mano de obra y equipo.","Sal",5,560.63,2803.15]
["Concepto",null,"IE-06U","      Suministro  de foco fluorescente espiral 23 w. De luz fria con 100 W de iluminacion según proyecto,","Pza",5,54.17,270.85000000000002]
["Subcapítulo","-","7.-","   INSTALACIONES HIDRÁULICAS Y SANITARIAS",null,null,null,0]
["Concepto",null,"IHS-01U","      Salidas para instalación sanitaria de 1 1/2\",  2\" y 4\" para ventila,  lavabo, sanitario, tarja, lavadero y regadera, a base de tubería de pvc, conexiones, pegamento, ranurado, resanado con mortero cemento-arena 1:4, pendiente, el concepto incluye la conexión de registro a registro con tubería pvc sanitaria de 4\",  materiales, mano de obra, herramienta y equipo.","Sal",6,540.37,3242.22]
["Concepto",null,"IHS-02U","      Salidas para instalación hidráulica  para  regadera agua fría y caliente, lavabo, sanitario,  tarja o zinc, lavadero con tubería cpvc de 1/2\" marca duralon o similar, el concepto incluye: limpieza,  conexiones, ranurado, pendiente, materiales, mano de obra, herramienta,  equipo, resanado con mortero cemento-arena 1:4, prueba del correcto funcionamiento de las instalaciones y todo lo necesario para su correcto funcionamiento.","Sal",6,559.91999999999996,3359.52]
["Concepto",null,"IHS-03U","      Suministro e instalación de sanitario línea económica  en color blanco, incluye asiento, pijas, cuello de cera, manguera flexible, llave cromada de 1/2\".","Pza",1,1764.34,1764.34]
["Concepto",null,"IHS-04U","      Suministro e instalación de lavabo marca lamosa o similar línea económica  en color blanco, incluye: Llave mezcladora marca helvex o similar línea económica, patas, soportes, manguera flexible, llave cromada de 1/2\", cespol bote.","Pza",1,2099.33,2099.33]
["Concepto",null,"IHS-05U","      Suministro e instalación de regadera línea económica  incluye brazo y chapetón.","Pza",1,183.02,183.02]
["Concepto",null,"IHS-06U","      Construcción de registro sanitario de 46x46cm de medida interna por 45 cms de profundidad, a base de ladrillo recocido común de la región de 7x14x28 cm, junteado con mortero cal-arena 1:5 + 10% de cemento, base y tapa a base de concreto F'c=150 kg/cm2 con t.m.a. 3/4\" reforzado con malla electrosoldada 6x6-10/10 el concepto incluye: enjarre interior con mortero cemento-arena 1:3, fabricación y colocación de dos jaladeras para la tapa a base de alambrón de 1/4\", con pases a base de poliducto de 1/2\". y todo lo necesario para su correcta ejecución.","Pza",2,1121.4100000000001,2242.8200000000002]
["Concepto",null,"IHS-07U","      Suministro e instalación de tinaco de 750 lt para garantizar una vida útil de 30 años, con todos los accesorios como jarro de aire, flotador #5, válvula de llenado ¾\", multiconector con válvula de esfera, tuerca unión y válvula check, incluye base para nivelar tinaco (detalle plano), la alimentación hidráulica por medio de tubería cpvc de 1/2\" y todo lo necesario para su correcto funcionamiento.","Pza",1,3105.31,3105.31]
["Concepto",null,"IHS-08U","      Suministro e instalación de lavadero doble de empotrar, el concepto incluye; firme de concreto sencillo, murete de block de 12x20x40 cm, llave de jardín de 1/2\",  resanado con mortero cemento-arena 1:4  y todo lo necesario para su correcto funcionamiento.","Pza",1,1812.66,1812.66]

{"sheet":"OPUS2","index":10,"n_rows":46,"n_cols":6,"rows_kept":46,"cut":false,"hidden":true,"merged":[]}
["Capítulo","-",null,"CONSTRUCCIÓN DE  UNIDAD BASICA DE VIVIENDA URBANA DE 42.38 M2, A BASE DE LOSA DE CIMENTACIÓN, MUROS DE BLOCK, TECHO DE VIGUETA Y BOVEDILLA, INSTALACIONES ELÉCTRICAS, HIDRÁULICAS Y SANITARIAS. EN LOS MUNICIPIOS DEL ESTADO DE SONORA."]
["Subcapítulo","-","1.-","   LOSA DE CIMENTACION"]
["Concepto",null,"PC-01U","      Limpia, trazo y nivelación.","M2",42.38]
["Concepto",null,"PC-02U","      Excavación a mano en terreno investigado en obra, cualquier profundidad, incluye afine de taludes y acarreo fuera de la obra de material no utilizable.","M3",0.63]
["Concepto",null,"PC-05U","      Losa de Cimentación de 9 cm de espesor, a base de concreto F'c=200  kg/cm2; t.m.a. 3/4\" hecho en obra; reforzado con  malla electrosoldada 6x6-10/10, dentellón perimetral e intermedio a base de armex de 15x20 cm; anclaje a base de  bastones con varilla corrugada 3/8\" grado 42 o 5/16 DA 6000  @ 30 con 40 cm de largo donde se indique en los planos de proyecto,  acabado pulido, incluye: curado, vibrado, colado y todo lo necesario para su correcta ejecución.","M2",42.38]
["Concepto",null,"PC-06U","      Impermeabilización a base de producto epóxico color negro aplicado sobre los 12 cm del desplante  incluye: materiales, mano de obra, herramienta y equipo necesarios para su correcta ejecución.","Ml",22.2]
["Subcapítulo","-","2.-","   ALBAÑILERIA"]
["Concepto",null,"MC-01U","      Construcción de muro de block de 12x20x40 cm junteado con mortero cemento arena proporción 1:4, incluye; Muro de enrase, plomeado, relleno de huecos en contorno de ventanas a base de concreto F´c= 150 kg/cm2 hecho en obra t.m.a. 3/4\", materiales, mano de obra, herramienta, equipo, deberá quedar acabado comun.","M2",78.87]
["Concepto",null,"MC-02U","      Castillo K-1 de concreto F´c=150 kg/cm2 hecho en obra t.m.a. 3/4\", 12x12 cm de sección, armado con armex 12x12-4; incluye: cimbra aparente y descimbra; fabricación, colado y  curado del concreto; materiales y mano de obra, deberá de quedar con acabado final aparente.","Ml",26.51]
["Concepto",null,"MC-02UA","      Castillo K-2 ahogados de 2.50 ML de altura incluye el pretil, con  concreto F´c=150 kg/cm2 hecho en obra t.m.a. 3/4\", con una varilla corrugada de refuerzo de 3/8\";  armado, colado y  vibrado del concreto; materiales y mano de obra,.","Ml",16.93]
["Concepto",null,"MC-03U","      Cadena de cerramiento de concreto F´c=200 kg/cm2 hecho en obra t.m.a. 3/4\", 12x20 cm de sección, armada con armex 12X20-4; incluye: cimbra aparente y descimbra; fabricación, colado y  curado del concreto; materiales y mano de obra, deberá de quedar con acabado final aparente.","Ml",38.9]
["Concepto",null,"MC-07U","      Fabricacion de base para tinaco de 450 litros a base de concreto F'c=150 kg/cm de 1.00  x 1.00 mts por espesor variable de 10 cms a  14 cms el concepto incluye cimbra, descimbra, curado, vibrado y acabado pulido para recibir impermeabilizacion y todo lo necesario para su correcto funcionamiento.","pza",1]
["Subcapítulo","-","3.-","   CUBIERTA"]
["Concepto",null,"CU-01U","      Losa aligerada de 15 cm de espesor, con pendiente de 3.35%,  a base de bovedilla de poliestireno y vigueta de alma abierta con armadura de acero diseño 10-36 de la marca deacero o similar, con patín de 12 cm de ancho por 5 cm de peralte, colado de capa de compresión  de 4 cms con concreto F'c=200 kg/cm2, t.m.a. 3/4\", reforzado malla electrosoldada de 6x6-10/10, el concepto incluye: afine de la superficie superior  con acabado semipulido para recibir impermeabilización, cimbra y descimbra aparente, colado, vibrado, curado y todo lo necesario para su correcta ejecución. Para la ejecución de este concepto el beneficiario aportara el importe de 10,600 pesos en la compra de los materiales alambre recocido, curacreto, malla electrosoldada 6x6 - 10/10, Vigueta alma abierta con armadura 10-36 y Bovedilla de poliestireno de 61x122 x11 cms de espesor el concepto incluye un volado de 10 cms x 10 cms  reforzado con una varilla corrugada de 3/8\" y bastones de 40 cms a cada 30 cms; ademas se debera de colocar tuino de 1\" para formar gotero.","M2",43.06]
["Concepto",null,"CU-02U","      Impermeabilización de losa de azotea a base de impermeabilizante elastomerico de 3 años de garantía,a razón de 1 m2/lt, y  tela de refuerzo sencillo, incluye limpieza y preparación de la superficie.","M2",43.06]
["Subcapítulo","-","4.-","   ACABADOS"]
["Concepto",null,"AC-02U","      Sardinel de 10x10 cm a  base de concreto hidráulico de F'c=150 kg/cm2 t.m.a. 3/4\". Incluye: Herramienta, mano de obra y todo lo necesario para su correcta ejecución.","Ml",1.92]
["Concepto",null,"AC-03U","      Aplanado de yeso en plafones, de 1.5 cm de espesor promedio, a plomo y regla, acabado pulido, reforzada con malla pollera en toda el área incluye: perfilado de aristas y remate en columnas, trabes y muros.","M2",37.729999999999997]
["Concepto",null,"AC-04U","      Suministro y colocación de azulejo de 20x30cm de color blanco en area humeda de regadera detallado en los numeros generadores, asentado con cemento crest o similar, boquilla de 2 mm a base de junta crest anti-hongo o similar.  Incluye: Herramienta, mano de obra y todo lo necesario para su correcta ejecución.","M2",4.01]
["Concepto",null,"AC-05U","      Suministro y colocación de piso antiderrapante de 20x20cm de color blanco de la marca porcelanite o similar en area de baño indicado en los numeros generadores , asentado con cemento crest o similar, boquilla de 2 mm a base de junta crest anti-hongo o similar. Incluye: Herramienta, mano de obra y todo lo necesario para su correcta ejecución.","M2",4.04]
["Concepto",null,"AC-13UA","      Aplanado grueso en muros exteriores  a base de  mortero cemento arena 1:4 en un espesor minimo de 1 cms , y terminado fino floteado con mortero cemento-arena 1:3 incluye: perfilado de aristas, remates, material, mano de obra y emboquillado.","m2",64.69]
["Concepto",null,"AC-13UB","      Aplanado de mezcla en muros interiroes del tipo repellado, a base de mortero cemento arena 1:3,  acabado fino floteado , incluye: material, mano de obra, remates y emboquillado.","m2",112.07]
["Concepto",null,"AC-14U","      Pintura vinílica lavable en colores rosa o blanca (pantone 503c) en interiores,  en muros exteriores se usa color blanca, para los rodapies, aleros y contorno de puertas se usara color rojo pantone 200C, incluye: material, limpieza, rebabeado, preparación de la superficie, aplicación de sellador vinílico y dos manos de pintura.","M2",215.85]
["Subcapítulo","-","5.-","   PUERTAS Y VENTANAS"]
["Concepto",null,"PV-01U","      Suministro e instalación de puerta de 0.90x2.06 mts, tipo multypanel lisa, fabricado con hoja de acero liso galvanizado cal. 28, con bastidor de madera de pino estufado, terminado en color blanco, relleno de esouma rigida de poliuretano con una densidad de 32 a 34 kg/m3 .,incluye marco metálico de 0.96x2.10m fabricado a base de perfil tubular M-225, chapa tipo bola con llave para exterior modelo MH52T3  marca fanal o similar acabado en latón brillante para exterior, dos bisagras de 3\", pintura esmalte anticorrosivo color blanco, perfilado del hueco previo a su colocación con mortero cemento-arena 1:4. Herramienta, mano de obra y todo lo necesario para su correcta ejecución.","Pza",1]
["Concepto",null,"PV-02U","      Suministro e instalación de puerta de tambor 0.80x2.06m con marco metálico de 0.86x2.10m fabricado a base de perfil tubular M-225., chapa tipo bola para interior  marca fanal o similar, dos bisagras de 3\", pintura esmalte anticorrosivo color blanco en el marco metálico, el concepto incluye perfilado del hueco previo a su colocación con mortero cemento-arena 1:4. Incluye: Herramienta, mano de obra y todo lo necesario para su correcta ejecución.","Pza",2]
["Concepto",null,"PV-03U","      Suministro e instalación de puerta de tambor 0.70x2.06m con marco metálico de 0.76x2.10m fabricado a base de perfil tubular M-225., chapa tipo bola para interior  marca fanal o similar, dos bisagras de 3\", pintura esmalte anticorrosivo color blanco en el marco metálico, el concepto incluye perfilado del hueco previo a su colocación con mortero cemento-arena 1:4. Incluye: Herramienta, mano de obra y todo lo necesario para su correcta ejecución.","Pza",1]
["Concepto",null,"PV-06U","      Suministro e instalación de puerta de 0.80x2.06 mts, tipo multypanel lisa, fabricado con hoja de acero liso galvanizado cal. 28, con bastidor de madera de pino estufado, terminado en color blanco, relleno de esouma rigida de poliuretano con una densidad de 32 a 34 kg/m3 .,incluye marco metálico de 0.86x2.10m fabricado a base de perfil tubular M-225, chapa tipo bola con llave para exterior modelo MH52T3  marca fanal o similar acabado en latón brillante para exterior, dos bisagras de 3\", pintura esmalte anticorrosivo color blanco, perfilado del hueco previo a su colocación con mortero cemento-arena 1:4. Herramienta, mano de obra y todo lo necesario para su correcta ejecución.","Pza",1]
["Concepto",null,"PV-04U","      Suministro y colocación  de ventana corrediza de 0.83x1.05m a base de perfil de aluminio anodizado natural  de 1 1/2\" con cristal claro de 3mm con un fijo lateral y un corredizo, incluye: perfilado del hueco, previo a su colocación a base de mortero cemento-arena proporción  1:4. silicon, Herramienta, mano de obra y todo lo necesario para su correcta ejecución.","Pza",3]
["Concepto",null,"PV-05U","      Suministro y colocación  de ventana corrediza de 0.60x0.40 m a base de perfil de aluminio anodizado natural  de 1 1/2\" con cristal claro de 3mm con un fijo lateral y un corredizo, incluye: perfilado del hueco, previo a su colocación a base de mortero cemento-arena proporción  1:4. silicon, Herramienta, mano de obra y todo lo necesario para su correcta ejecución.","Pza",1]
["Subcapítulo","-","6.-","   INSTALACIONES ELECTRICAS"]
["Concepto",null,"IE-01U","      Suministro y colocación de centro de carga de dos circuitos  con una pieza de interruptor sencillo de 1x30 amperes, tubería galvanizada conduit pared delgada de 3/4\", el concepto incluye ranurado, resanado con mortero cemento-arena 1:4, prueba del correcto funcionamiento de las instalaciones y todo lo necesario para su correcto funcionamiento.","Pza",1]
["Concepto",null,"IE-02U","      Salida eléctrica para tomacorriente, incluye; Contacto doble, tapa, poliducto eléctrico, cableado, ranurado, sujeción de poliducto, mano de obra y equipo.","Sal",9]
["Concepto",null,"IE-03U","      Salida eléctrica para apagador sencillo,  incluye: tapa de una via, poliducto eléctrico naranja reforzado de 1/2\", cableado con cable thw #12, ranurado, resanado con mortero cemento-arena 1:4, sujeción de poliducto, mano de obra y equipo.","Sal",3]
["Concepto",null,"IE-04U","      Salida eléctrica para apagador doble, incluye; tapa de dos vías, poliducto eléctrico naranja reforzado de 1/2\", cableado con cable thw #12, ranurado, resanado con mortero cemento-arena 1:4, sujeción de poliducto, mano de obra y equipo.","Sal",2]
["Concepto",null,"IE-05U","      Salida eléctrica para lámpara,  incluye; cableado con cable thw #12,  caja octogonal de 4\", con poliducto naranja reforzado de 1/2\", cableado, ranurado, resanado con mortero cemento arena 1:4, sujeción de poliducto, mano de obra y equipo.","Sal",7]
["Concepto",null,"IE-06U","      Suministro  de foco fluorescente espiral 23 w. De luz fria con 100 W de iluminacion según proyecto,","Pza",7]
["Subcapítulo","-","7.-","   INSTALACIONES HIDRÁULICAS Y SANITARIAS"]
["Concepto",null,"IHS-01U","      Salidas para instalación sanitaria de 1 1/2\",  2\" y 4\" para ventila,  lavabo, sanitario, tarja y regadera, tubería de pvc, conexiones, pegamento, ranurado, resanado con mortero cemento-arena 1:4, pendiente, materiales, mano de obra, herramienta y equipo.","Sal",5]
["Concepto",null,"IHS-02U","      Salidas para instalación hidráulica  para  regadera agua fría y caliente, lavabo, sanitario,  tarja o zinc, con tubería cpvc de 1/2\" marca duralon o similar, el concepto incluye: limpieza,  conexiones, ranurado, pendiente, materiales, mano de obra, herramienta,  equipo, resanado con mortero cemento-arena 1:4, prueba del correcto funcionamiento de las instalaciones y todo lo necesario para su correcto funcionamiento.","Sal",5]
["Concepto",null,"IHS-03U","      Suministro e instalación de sanitario línea económica  en color blanco, incluye asiento, pijas, cuello de cera, manguera flexible, llave cromada de 1/2\".","Pza",1]
["Concepto",null,"IHS-04U","      Suministro e instalación de lavabo marca lamosa o similar línea económica  en color blanco, incluye: Llave mezcladora marca helvex o similar línea económica, patas, soportes, manguera flexible, llave cromada de 1/2\", cespol bote.","Pza",1]
["Concepto",null,"IHS-05U","      Suministro e instalación de regadera línea económica  incluye brazo y chapetón.","Pza",1]
["Concepto",null,"IHS-06U","      Construcción de registro sanitario de 46x46cm de medida interna por 45 cms de profundidad, a base de ladrillo recocido común de la región de 7x14x28 cm, junteado con mortero cal-arena 1:5 + 10% de cemento, base y tapa a base de concreto F'c=150 kg/cm2 con t.m.a. 3/4\" reforzado con malla electrosoldada 6x6-10/10 el concepto incluye: enjarre interior con mortero cemento-arena 1:3, fabricación y colocación de dos jaladeras para la tapa a base de alambrón de 1/4\", con pases a base de poliducto de 1/2\". y todo lo necesario para su correcta ejecución.","Pza",2]
["Concepto",null,"IHS-07U","      Suministro e instalación de tinaco de 450 lt para garantizar una vida útil de 30 años, con todos los accesorios como jarro de aire, flotador #5, válvula de llenado ¾\", multiconector con válvula de esfera, tuerca unión y válvula check, incluye base para nivelar tinaco (detalle plano), la alimentación hidráulica por medio de tubería cpvc de 1/2\" y todo lo necesario para su correcto funcionamiento.","Pza",1]
["Concepto",null,"IHS-08U","      Suministro e instalación de lavadero doble de empotrar, el concepto incluye; firme de concreto sencillo, murete de block de 12x20x40 cm, la salida sanitaria con tubería pvc de 2\" y la salida hidráulica con tubería cpvc de 1/2\", llave de jardín de 1/2\",  resanado con mortero cemento-arena 1:4  y todo lo necesario para su correcto funcionamiento.","Pza",1]

{"sheet":"Hoja5","index":11,"n_rows":10,"n_cols":12,"rows_kept":10,"cut":false,"hidden":true,"merged":[]}
["Capítulo","-",null,"CONSTRUCCIÓN DE  UNIDAD BASICA DE VIVIENDA URBANA DE 42.53 M2, A BASE DE LOSA DE CIMENTACIÓN, MUROS DE BLOCK, TECHO DE VIGUETA Y BOVEDILLA, INSTALACIONES ELÉCTRICAS, HIDRÁULICAS Y SANITARIAS. EN EL MUNICIPIO DE __________ SONORA.",null,null,null,190000]
["Subcapítulo","+","1.-","   LOSA DE CIMENTACION",null,null,null,24251.71,{"$f":"+datos!$B$4","v":137},{"$f":"+H2*I2","v":3322484.27},{"$f":"+'F-22 CATAL'!G16","v":0},{"$f":"+J2-K2","v":3322484.27}]
["Subcapítulo","+","2.-","   ALBAÑILERIA",null,null,null,49801.83,{"$f":"+datos!$B$4","v":137},{"$f":"+H3*I3","v":6822850.71},{"$f":"+'F-22 CATAL'!#REF!","v":{"$error":"#REF!"}},{"$f":"+J3-K3","v":{"$error":"#REF!"}}]
["Subcapítulo","+","3.-","   CUBIERTA",null,null,null,30958.93,{"$f":"+datos!$B$4","v":137},4241373.41,{"$f":"+'F-22 CATAL'!#REF!","v":{"$error":"#REF!"}},{"$error":"#REF!"}]
["Subcapítulo","+","4.-","   ACABADOS",null,null,null,41948.26,{"$f":"+datos!$B$4","v":137},5746911.6200000001,{"$f":"+'F-22 CATAL'!G33","v":0},5746911.6200000001]
["Subcapítulo","+","5.-","   PUERTAS Y VENTANAS",null,null,null,15718.43,{"$f":"+datos!$B$4","v":137},2153424.91,{"$f":"+'F-22 CATAL'!G43","v":0},2153424.91]
["Subcapítulo","+","6.-","   INSTALACIONES ELECTRICAS",null,null,null,9961.4,{"$f":"+datos!$B$4","v":137},1364711.8,{"$f":"+'F-22 CATAL'!#REF!","v":{"$error":"#REF!"}},{"$error":"#REF!"}]
["Subcapítulo","+","7.-","   INSTALACIONES HIDRÁULICAS Y SANITARIAS",null,null,null,17359.439999999999,{"$f":"+datos!$B$4","v":137},2378243.2799999998,{"$f":"+'F-22 CATAL'!#REF!","v":{"$error":"#REF!"}},{"$error":"#REF!"}]
[]
[null,null,null,null,null,null,null,null,null,{"$f":"SUM(J2:J9)","v":26030000},{"$f":"SUM(K2:K9)","v":{"$error":"#REF!"}}]

{"sheet":"OPUSS2","index":12,"n_rows":49,"n_cols":6,"rows_kept":49,"cut":false,"hidden":true,"merged":[]}
["Capítulo","-",null,"CONSTRUCCIÓN DE  UNIDAD BASICA DE VIVIENDA URBANA DE 42.53 M2, A BASE DE LOSA DE CIMENTACIÓN, MUROS DE BLOCK, TECHO DE VIGUETA Y BOVEDILLA, INSTALACIONES ELÉCTRICAS, HIDRÁULICAS Y SANITARIAS. EN EL MUNICIPIO DE __________ SONORA."]
["Subcapítulo","-","1.-","   LOSA DE CIMENTACION"]
["Concepto",null,"PC-01U","      Limpia, trazo y nivelación.","M2",22.09]
["Concepto",null,"PC-02U","      Excavación a mano en terreno investigado en obra, cualquier profundidad, incluye afine de taludes y acarreo fuera de la obra de material no utilizable.","M3",0.36]
["Concepto",null,"PC-05U","      Losa de Cimentación de 9 cm de espesor, a base de concreto F'c=200  kg/cm2; t.m.a. 3/4\" hecho en obra; reforzado con  malla electrosoldada 6x6-10/10, plantilla de 5 cm de espesor a base de concreto F'c=100 kg/cm2 t.m.a. 3/4\", dentellón perimetral e intermedio a base de armex de 15x20 cm; anclaje a base de  bastones con varilla corrugada 3/8\" grado 42 o 5/16 DA 6000  @ 30 con 40 cm de largo donde se indique en los planos de proyecto,  acabado pulido, incluye: fumigacion antitermitas con fumigante aditivo adherente termidor o similar, curado, vibrado, colado y todo lo necesario para su correcta ejecución.","M2",22.09]
["Concepto",null,"PC-06U","      Impermeabilización a base de producto epóxico color negro aplicado sobre los 12 cm del desplante y 9 cm del espesor de la losa en todo el perímetro, incluye: materiales, mano de obra, herramienta y equipo necesarios para su correcta ejecución.","Ml",22.14]
["Concepto",null,"PC-07U","      Afine, nivelacion y compactacion de terreno natural para desplante de losa de cimentacio, incluye todo lo necesario para su correcta ejecucion.","M2",22.09]
["Subcapítulo","-","2.-","   ALBAÑILERIA"]
["Concepto",null,"MC-01U","      Construcción de muro de block de 12x20x40 cm junteado con mortero cemento arena proporción 1:4, incluye; plomeado, relleno de huecos en contorno de ventanas a base de concreto F´c= 150 kg/cm2 hecho en obra t.m.a. 3/4\", materiales, mano de obra, herramienta, equipo, deberá quedar acabado comun.","M2",34.57]
["Concepto",null,"MC-02U","      Castillo K-1 de concreto F´c=150 kg/cm2 hecho en obra t.m.a. 3/4\", 12x12 cm de sección, armado con armex 12x12-4; incluye: cimbra aparente y descimbra; fabricación, colado y  curado del concreto; materiales y mano de obra, deberá de quedar con acabado final aparente.","Ml",19.7]
["Concepto",null,"MC-02UA","      Castillo K-2 ahogados de 2.50 ML de altura incluye el pretil, con  concreto F´c=150 kg/cm2 hecho en obra t.m.a. 3/4\", con una varilla corrugada de refuerzo de 3/8\";  armado, colado y  vibrado del concreto; materiales y mano de obra,.","Ml",7.03]
["Concepto",null,"MC-08U","      Cadena intermedia ubicada a la quinta hilada a base block dala de 12x20x40 cms, relleno con concreto F'c=150 kg/cm2 y una varilla corrugada de 3/8\" el concepto incluye block dala de 12x20x40 cms, mortero cemento -arena 1:4, materiales, mano de obra, herramienta, equipo y todo lo necesario para su correcta ejecucion.","ml",19.47]
["Concepto",null,"MC-03U","      Cadena de cerramiento de concreto F´c=150 kg/cm2 hecho en obra t.m.a. 3/4\", 12x20 cm de sección, armada con armex 12X20-4; incluye: cimbra aparente y descimbra; fabricación, colado y  curado del concreto; materiales y mano de obra, deberá de quedar con acabado final aparente.","Ml",22.14]
["Concepto",null,"MC-09U","      Construcción de muro de enrase a base de block de 12x20x40 cm junteado con mortero cemento arena proporción 1:4, incluye; materiales, mano de obra, herramienta, equipo, deberá quedar acabado comun.","M2",5.6]
["Concepto",null,"MC-04U","      Construcción de pretil  a base de block de 12x20x40 cm junteado con mortero cemento arena proporción 1:4, incluye; plomeado, relleno de huecos en parte superior y en parte inferior para nivelar con concreto F´c= 150 kg/cm2 hecho en obra t.m.a. 3/4\", materiales, mano de obra, herramienta, equipo, con boquilla cortada a hueso.","M2",1.2]
["Concepto",null,"AC-01U","      Chaflán de 10x10 cms. con pasta de cemento-arena prop. 1:4, según detalle indicado en los planos, Incluye: Material, mano de obra, herramienta y todo lo necesario para su correcta ejecución.","ML",13.11]
["Concepto",null,"MC-07U","      Fabricacion de base para tinaco de 750 litros a base de concreto F'c=150 kg/cm de 1.00  x 1.00 mts por espesor variable de 10 cms a  14 cms el concepto incluye cimbra, descimbra, curado, vibrado y acabado pulido para recibir impermeabilizacion y todo lo necesario para su correcto funcionamiento.","pza",1]
["Subcapítulo","-","3.-","   CUBIERTA"]
["Concepto",null,"CU-01U","      Losa aligerada de 15 cm de espesor, con pendiente de 3.35%,  a base de bovedilla de poliestireno y vigueta de alma abierta con armadura de acero diseño 10-36 de la marca deacero o similar, con patín de 12 cm de ancho por 5 cm de peralte, colado de capa de compresión  de 4 cms con concreto F'c=200 kg/cm2, t.m.a. 3/4\", reforzado malla electrosoldada de 6x6-10/10, el concepto incluye: afine de la superficie superior  con acabado semipulido para recibir impermeabilización, cimbra y descimbra aparente, colado, vibrado, curado y todo lo necesario para su correcta ejecución.  el concepto incluye un volado de 20 cms x 10 cms  reforzado con una varilla corrugada de 3/8\" y bastones de 40 cms a cada 30 cms; ademas se debera de colocar tuino de 1\" para formar gotero.","M2",23.4]
["Concepto",null,"CU-02U","      Impermeabilización de losa de azotea a base de impermeabilizante elastomerico de 3 años de garantía,a razón de 1 m2/lt, y  tela de refuerzo doble, incluye limpieza y preparación de la superficie.","M2",23.4]
["Subcapítulo","-","4.-","   ACABADOS"]
["Concepto",null,"AC-02U","      Sardinel de 10x10 cm a  base de concreto hidráulico de F'c=150 kg/cm2 t.m.a. 3/4\". Incluye: Herramienta, mano de obra y todo lo necesario para su correcta ejecución.","Ml",1.26]
["Concepto",null,"AC-03U","      Aplanado de yeso en plafones, de 1.5 cm de espesor promedio, a plomo y regla, acabado pulido, reforzada con malla pollera en toda el área incluye: perfilado de aristas y remate en columnas, trabes y muros.","M2",19.440000000000001]
["Concepto",null,"AC-04U","      Suministro y colocación de azulejo de 20x30cm de color blanco asentado con cemento crest o similar, boquilla de 2 mm a base de junta crest anti-hongo o similar.  Incluye: Herramienta, mano de obra y todo lo necesario para su correcta ejecución.","M2",6.19]
["Concepto",null,"AC-05U","      Suministro y colocación de piso antiderrapante de 20x20cm de color blanco de la marca porcelanite o similar asentado con cemento crest o similar, boquilla de 2 mm a base de junta crest anti-hongo o similar. Incluye: Herramienta, mano de obra y todo lo necesario para su correcta ejecución.","M2",3.33]
["Concepto",null,"AC-13UA","      Aplanado grueso en muros exteriores e interiroes  a base de  mortero cemento arena 1:4 en un espesor minimo de 1.5 cms , y terminado fino floteado con mortero cemento-arena 1:3 incluye: perfilado de aristas, remates, material, mano de obra y emboquillado.","m2",99.36]
["Concepto",null,"AC-14U","      Pintura vinílica lavable en muros exteriores, interiores y plafond de yeso, incluye: material, limpieza, rebabeado, preparación de la superficie, aplicación de sellador vinílico y dos manos de pintura.","M2",118.8]
["Subcapítulo","-","5.-","   PUERTAS Y VENTANAS"]
["Concepto",null,"PV-01U","      Suministro e instalación de puerta de 0.90x2.06 mts, tipo multypanel lisa, fabricado con hoja de acero liso galvanizado cal. 28, con bastidor de madera de pino estufado, terminado en color blanco, relleno de esouma rigida de poliuretano con una densidad de 32 a 34 kg/m3 .,incluye marco metálico de 0.96x2.10m fabricado a base de perfil tubular M-225, chapa tipo bola con llave para exterior modelo MH52T3  marca fanal o similar acabado en latón brillante para exterior, dos bisagras de 3\", pintura esmalte anticorrosivo color blanco, perfilado del hueco previo a su colocación con mortero cemento-arena 1:4. Herramienta, mano de obra y todo lo necesario para su correcta ejecución.","Pza",1]
["Concepto",null,"PV-03U","      Suministro e instalación de puerta de tambor 0.70x2.06m con marco metálico de 0.76x2.10m fabricado a base de perfil tubular M-225., chapa tipo bola para interior  marca fanal o similar, dos bisagras de 3\", pintura esmalte anticorrosivo color blanco en el marco metálico, el concepto incluye perfilado del hueco previo a su colocación con mortero cemento-arena 1:4. Incluye: Herramienta, mano de obra y todo lo necesario para su correcta ejecución.","Pza",1]
["Concepto",null,"PV-04U","      Suministro y colocación  de ventana corrediza de 0.83x1.05m a base de perfil de aluminio anodizado natural  de 1 1/2\" con cristal claro de 3mm con un fijo lateral y un corredizo, incluye: perfilado del hueco, previo a su colocación a base de mortero cemento-arena proporción  1:4. silicon, Herramienta, mano de obra y todo lo necesario para su correcta ejecución.","Pza",1]
["Concepto",null,"PV-05U","      Suministro y colocación  de ventana corrediza de 0.60x0.40 m a base de perfil de aluminio anodizado natural  de 1 1/2\" con cristal claro de 3mm con un fijo lateral y un corredizo, incluye: perfilado del hueco, previo a su colocación a base de mortero cemento-arena proporción  1:4. silicon, Herramienta, mano de obra y todo lo necesario para su correcta ejecución.","Pza",1]
["Concepto",null,"PV-06U","      Suministro e instalación de puerta de lamina troquelada cal. 20 de 0.80 x 2.06 mts. Incluye: marco metálico de 0.86x2.10m fabricado a base de perfil tubular M-225., chapa con llave para exterior acabado en latón brillante para exterior, dos bisagras de 3\", pintura esmalte anticorrosivo color blanco en el marco metálico, el concepto incluye perfilado del hueco previo a su colocación con mortero cemento-arena 1:4. Incluye: Herramienta, mano de obra y todo lo necesario para su correcta ejecución.","Pza",1]
["Subcapítulo","-","6.-","   INSTALACIONES ELECTRICAS"]
["Concepto",null,"IE-01U","      Suministro y colocación de centro de carga de dos circuitos  con dos piezas de interruptor sencillo de 1x30 amperes, tubería galvanizada conduit pared delgada de 3/4\", el concepto incluye ranurado, resanado con mortero cemento-arena 1:4, prueba del correcto funcionamiento de las instalaciones y todo lo necesario para su correcto funcionamiento.","Pza",1]
["Concepto",null,"IE-02U","      Salida eléctrica para tomacorriente, incluye; Contacto doble, tapa, poliducto eléctrico, cableado, ranurado, sujeción de poliducto, mano de obra y equipo.","Sal",5]
["Concepto",null,"IE-03U","      Salida eléctrica para apagador sencillo,  incluye: tapa de una via, poliducto eléctrico naranja reforzado de 1/2\", cableado con cable thw #12, ranurado, resanado con mortero cemento-arena 1:4, sujeción de poliducto, mano de obra y equipo.","Sal",1]
["Concepto",null,"IE-04U","      Salida eléctrica para apagador doble, incluye; tapa de dos vías, poliducto eléctrico naranja reforzado de 1/2\", cableado con cable thw #12, ranurado, resanado con mortero cemento-arena 1:4, sujeción de poliducto, mano de obra y equipo.","Sal",2]
["Concepto",null,"IE-05U","      Salida eléctrica para lámpara,  incluye; cableado con cable thw #12,  caja octogonal de 4\", con poliducto naranja reforzado de 1/2\", cableado, ranurado, resanado con mortero cemento arena 1:4, sujeción de poliducto, mano de obra y equipo.","Sal",5]
["Concepto",null,"IE-06U","      Suministro  de foco fluorescente espiral 23 w. De luz fria con 100 W de iluminacion según proyecto,","Pza",5]
["Subcapítulo","-","7.-","   INSTALACIONES HIDRÁULICAS Y SANITARIAS"]
["Concepto",null,"IHS-01U","      Salidas para instalación sanitaria de 1 1/2\",  2\" y 4\" para ventila,  lavabo, sanitario, tarja, lavadero y regadera, a base de tubería de pvc, conexiones, pegamento, ranurado, resanado con mortero cemento-arena 1:4, pendiente, el concepto incluye la conexión de registro a registro con tubería pvc sanitaria de 4\",  materiales, mano de obra, herramienta y equipo.","Sal",6]
["Concepto",null,"IHS-02U","      Salidas para instalación hidráulica  para  regadera agua fría y caliente, lavabo, sanitario,  tarja o zinc, lavadero con tubería cpvc de 1/2\" marca duralon o similar, el concepto incluye: limpieza,  conexiones, ranurado, pendiente, materiales, mano de obra, herramienta,  equipo, resanado con mortero cemento-arena 1:4, prueba del correcto funcionamiento de las instalaciones y todo lo necesario para su correcto funcionamiento.","Sal",6]
["Concepto",null,"IHS-03U","      Suministro e instalación de sanitario línea económica  en color blanco, incluye asiento, pijas, cuello de cera, manguera flexible, llave cromada de 1/2\".","Pza",1]
["Concepto",null,"IHS-04U","      Suministro e instalación de lavabo marca lamosa o similar línea económica  en color blanco, incluye: Llave mezcladora marca helvex o similar línea económica, patas, soportes, manguera flexible, llave cromada de 1/2\", cespol bote.","Pza",1]
["Concepto",null,"IHS-05U","      Suministro e instalación de regadera línea económica  incluye brazo y chapetón.","Pza",1]
["Concepto",null,"IHS-06U","      Construcción de registro sanitario de 46x46cm de medida interna por 45 cms de profundidad, a base de ladrillo recocido común de la región de 7x14x28 cm, junteado con mortero cal-arena 1:5 + 10% de cemento, base y tapa a base de concreto F'c=150 kg/cm2 con t.m.a. 3/4\" reforzado con malla electrosoldada 6x6-10/10 el concepto incluye: enjarre interior con mortero cemento-arena 1:3, fabricación y colocación de dos jaladeras para la tapa a base de alambrón de 1/4\", con pases a base de poliducto de 1/2\". y todo lo necesario para su correcta ejecución.","Pza",2]
["Concepto",null,"IHS-07U","      Suministro e instalación de tinaco de 750 lt para garantizar una vida útil de 30 años, con todos los accesorios como jarro de aire, flotador #5, válvula de llenado ¾\", multiconector con válvula de esfera, tuerca unión y válvula check, incluye base para nivelar tinaco (detalle plano), la alimentación hidráulica por medio de tubería cpvc de 1/2\" y todo lo necesario para su correcto funcionamiento.","Pza",1]
["Concepto",null,"IHS-08U","      Suministro e instalación de lavadero doble de empotrar, el concepto incluye; firme de concreto sencillo, murete de block de 12x20x40 cm, llave de jardín de 1/2\",  resanado con mortero cemento-arena 1:4  y todo lo necesario para su correcto funcionamiento.","Pza",1]

{"sheet":"Hoja6","index":13,"n_rows":49,"n_cols":8,"rows_kept":49,"cut":false,"hidden":true,"merged":[]}
["Capítulo","-",null,"CONSTRUCCIÓN DE  PIE DE CASA 22.09 M2, A BASE DE LOSA DE CIMENTACIÓN, MUROS DE BLOCK, TECHO DE VIGUETA Y BOVEDILLA, INSTALACIONES ELÉCTRICAS, HIDRÁULICAS Y SANITARIAS. EN EL MUNICIPIO DE __________ SONORA.",null,null,null,116459.57]
["Subcapítulo","-","1.-","   LOSA DE CIMENTACION",null,null,null,12775.85]
["Concepto",null,"PC-01U","      Limpia, trazo y nivelación.","M2",22.09,12.82,283.19]
["Concepto",null,"PC-02U","      Excavación a mano en terreno investigado en obra, cualquier profundidad, incluye afine de taludes y acarreo fuera de la obra de material no utilizable.","M3",0.36,139.97,50.39]
["Concepto",null,"PC-05U","      Losa de Cimentación de 9 cm de espesor, a base de concreto F'c=200  kg/cm2; t.m.a. 3/4\" hecho en obra; reforzado con  malla electrosoldada 6x6-10/10, plantilla de 5 cm de espesor a base de concreto F'c=100 kg/cm2 t.m.a. 3/4\", dentellón perimetral e intermedio a base de armex de 15x20 cm; anclaje a base de  bastones con varilla corrugada 3/8\" grado 42 o 5/16 DA 6000  @ 30 con 40 cm de largo donde se indique en los planos de proyecto,  acabado pulido, incluye: fumigacion antitermitas con fumigante aditivo adherente termidor o similar, curado, vibrado, colado y todo lo necesario para su correcta ejecución.","M2",22.09,515.16,11379.88]
["Concepto",null,"PC-06U","      Impermeabilización a base de producto epóxico color negro aplicado sobre los 12 cm del desplante y 9 cm del espesor de la losa en todo el perímetro, incluye: materiales, mano de obra, herramienta y equipo necesarios para su correcta ejecución.","Ml",22.14,32.47,718.89]
["Concepto",null,"PC-07U","      Afine, nivelacion y compactacion de terreno natural para desplante de losa de cimentacio, incluye todo lo necesario para su correcta ejecucion.","M2",22.09,15.55,343.5]
["Subcapítulo","-","2.-","   ALBAÑILERIA",null,null,null,28499]
["Concepto",null,"MC-01U","      Construcción de muro de block de 12x20x40 cm junteado con mortero cemento arena proporción 1:4, incluye; plomeado, relleno de huecos en contorno de ventanas a base de concreto F´c= 150 kg/cm2 hecho en obra t.m.a. 3/4\", materiales, mano de obra, herramienta, equipo, deberá quedar acabado comun.","M2",34.57,349.96,12098.12]
["Concepto",null,"MC-02U","      Castillo K-1 de concreto F´c=150 kg/cm2 hecho en obra t.m.a. 3/4\", 12x12 cm de sección, armado con armex 12x12-4; incluye: cimbra aparente y descimbra; fabricación, colado y  curado del concreto; materiales y mano de obra, deberá de quedar con acabado final aparente.","Ml",19.7,177.62,3499.11]
["Concepto",null,"MC-02UA","      Castillo K-2 ahogados de 2.50 ML de altura incluye el pretil, con  concreto F´c=150 kg/cm2 hecho en obra t.m.a. 3/4\", con una varilla corrugada de refuerzo de 3/8\";  armado, colado y  vibrado del concreto; materiales y mano de obra,.","Ml",7.03,52.92,372.03]
["Concepto",null,"MC-08U","      Cadena intermedia ubicada a la quinta hilada a base block dala de 12x20x40 cms, relleno con concreto F'c=150 kg/cm2 y una varilla corrugada de 3/8\" el concepto incluye block dala de 12x20x40 cms, mortero cemento -arena 1:4, materiales, mano de obra, herramienta, equipo y todo lo necesario para su correcta ejecucion.","ml",19.47,145.16999999999999,2826.46]
["Concepto",null,"MC-03U","      Cadena de cerramiento de concreto F´c=150 kg/cm2 hecho en obra t.m.a. 3/4\", 12x20 cm de sección, armada con armex 12X20-4; incluye: cimbra aparente y descimbra; fabricación, colado y  curado del concreto; materiales y mano de obra, deberá de quedar con acabado final aparente.","Ml",22.14,222.33,4922.3900000000003]
["Concepto",null,"MC-09U","      Construcción de muro de enrase a base de block de 12x20x40 cm junteado con mortero cemento arena proporción 1:4, incluye; materiales, mano de obra, herramienta, equipo, deberá quedar acabado comun.","M2",5.6,415.8,2328.48]
["Concepto",null,"MC-04U","      Construcción de pretil  a base de block de 12x20x40 cm junteado con mortero cemento arena proporción 1:4, incluye; plomeado, relleno de huecos en parte superior y en parte inferior para nivelar con concreto F´c= 150 kg/cm2 hecho en obra t.m.a. 3/4\", materiales, mano de obra, herramienta, equipo, con boquilla cortada a hueso.","M2",1.2,396.58,475.9]
["Concepto",null,"AC-01U","      Chaflán de 10x10 cms. con pasta de cemento-arena prop. 1:4, según detalle indicado en los planos, Incluye: Material, mano de obra, herramienta y todo lo necesario para su correcta ejecución.","ML",13.11,80.45,1054.7]
["Concepto",null,"MC-07U","      Fabricacion de base para tinaco de 750 litros a base de concreto F'c=150 kg/cm de 1.00  x 1.00 mts por espesor variable de 10 cms a  14 cms el concepto incluye cimbra, descimbra, curado, vibrado y acabado pulido para recibir impermeabilizacion y todo lo necesario para su correcto funcionamiento.","pza",1,921.81,921.81]
["Subcapítulo","-","3.-","   CUBIERTA",null,null,null,16160.28]
["Concepto",null,"CU-01U","      Losa aligerada de 15 cm de espesor, a base de bovedilla de poliestireno con densidad de 12 kg/m3 y vigueta de alma abierta con armadura de acero diseño 10-36 de la marca deacero o similar, con patín de 12 cm de ancho por 5 cm de peralte, colado de capa de compresión  variable de 7 a 4 cms con concreto F'c=200 kg/cm2, t.m.a. 3/4\", reforzado malla electrosoldada de 6x6-10/10, el concepto incluye: afine de la superficie superior  con acabado semipulido para recibir impermeabilización, cimbra y descimbraaparente, colado, vibrado, curado y todo lo necesario para su correcta ejecución.","M2",23.4,609.91999999999996,14272.13]
["Concepto",null,"CU-02U","      Impermeabilización de losa de azotea a base de impermeabilizante elastomerico de 3 años de garantía,a razón de 1 m2/lt, y  tela de refuerzo doble, incluye limpieza y preparación de la superficie.","M2",23.4,80.69,1888.15]
["Subcapítulo","-","4.-","   ACABADOS",null,null,null,24979.77]
["Concepto",null,"AC-02U","      Sardinel de 10x10 cm a  base de concreto hidráulico de F'c=150 kg/cm2 t.m.a. 3/4\". Incluye: Herramienta, mano de obra y todo lo necesario para su correcta ejecución.","Ml",1.26,48,60.48]
["Concepto",null,"AC-03U","      Aplanado de yeso en plafones, de 1.5 cm de espesor promedio, a plomo y regla, acabado pulido, reforzada con malla pollera en toda el área incluye: perfilado de aristas y remate en columnas, trabes y muros.","M2",19.440000000000001,202.72,3940.88]
["Concepto",null,"AC-04U","      Suministro y colocación de azulejo de 20x30cm de color blanco asentado con cemento crest o similar, boquilla de 2 mm a base de junta crest anti-hongo o similar.  Incluye: Herramienta, mano de obra y todo lo necesario para su correcta ejecución.","M2",6.19,410.65,2541.92]
["Concepto",null,"AC-05U","      Suministro y colocación de piso antiderrapante de 20x20cm de color blanco de la marca porcelanite o similar asentado con cemento crest o similar, boquilla de 2 mm a base de junta crest anti-hongo o similar. Incluye: Herramienta, mano de obra y todo lo necesario para su correcta ejecución.","M2",3.33,421.57,1403.83]
["Concepto",null,"AC-13UA","      Aplanado grueso en muros exteriores e interiroes  a base de  mortero cemento arena 1:4 en un espesor minimo de 1.5 cms , y terminado fino floteado con mortero cemento-arena 1:3 incluye: perfilado de aristas, remates, material, mano de obra y emboquillado.","m2",99.36,130.63999999999999,12980.39]
["Concepto",null,"AC-14U","      Pintura vinílica lavable en muros exteriores, interiores y plafond de yeso, incluye: material, limpieza, rebabeado, preparación de la superficie, aplicación de sellador vinílico y dos manos de pintura.","M2",118.8,34.11,4052.27]
["Subcapítulo","-","5.-","   PUERTAS Y VENTANAS",null,null,null,9313.34]
["Concepto",null,"PV-01U","      Suministro e instalación de puerta de 0.90x2.06 mts, tipo multypanel lisa, fabricado con hoja de acero liso galvanizado cal. 28, con bastidor de madera de pino estufado, terminado en color blanco, relleno de esouma rigida de poliuretano con una densidad de 32 a 34 kg/m3 .,incluye marco metálico de 0.96x2.10m fabricado a base de perfil tubular M-225, chapa tipo bola con llave para exterior modelo MH52T3  marca fanal o similar acabado en latón brillante para exterior, dos bisagras de 3\", pintura esmalte anticorrosivo color blanco, perfilado del hueco previo a su colocación con mortero cemento-arena 1:4. Herramienta, mano de obra y todo lo necesario para su correcta ejecución.","Pza",1,3179.97,3179.97]
["Concepto",null,"PV-03U","      Suministro e instalación de puerta de tambor 0.70x2.06m con marco metálico de 0.76x2.10m fabricado a base de perfil tubular M-225., chapa tipo bola para interior  marca fanal o similar, dos bisagras de 3\", pintura esmalte anticorrosivo color blanco en el marco metálico, el concepto incluye perfilado del hueco previo a su colocación con mortero cemento-arena 1:4. Incluye: Herramienta, mano de obra y todo lo necesario para su correcta ejecución.","Pza",1,1773.91,1773.91]
["Concepto",null,"PV-04U","      Suministro y colocación  de ventana corrediza de 0.83x1.05m a base de perfil de aluminio anodizado natural  de 1 1/2\" con cristal claro de 3mm con un fijo lateral y un corredizo, incluye: perfilado del hueco, previo a su colocación a base de mortero cemento-arena proporción  1:4. silicon, Herramienta, mano de obra y todo lo necesario para su correcta ejecución.","Pza",1,1313,1313]
["Concepto",null,"PV-05U","      Suministro y colocación  de ventana corrediza de 0.60x0.40 m a base de perfil de aluminio anodizado natural  de 1 1/2\" con cristal claro de 3mm con un fijo lateral y un corredizo, incluye: perfilado del hueco, previo a su colocación a base de mortero cemento-arena proporción  1:4. silicon, Herramienta, mano de obra y todo lo necesario para su correcta ejecución.","Pza",1,915.37,915.37]
["Concepto",null,"PV-06U","      Suministro e instalación de puerta de lamina troquelada cal. 20 de 0.80 x 2.06 mts. Incluye: marco metálico de 0.86x2.10m fabricado a base de perfil tubular M-225., chapa con llave para exterior acabado en latón brillante para exterior, dos bisagras de 3\", pintura esmalte anticorrosivo color blanco en el marco metálico, el concepto incluye perfilado del hueco previo a su colocación con mortero cemento-arena 1:4. Incluye: Herramienta, mano de obra y todo lo necesario para su correcta ejecución.","Pza",1,2131.09,2131.09]
["Subcapítulo","-","6.-","   INSTALACIONES ELECTRICAS",null,null,null,6922.11]
["Concepto",null,"IE-01U","      Suministro y colocación de centro de carga de dos circuitos  con dos piezas de interruptor sencillo de 1x30 amperes, tubería galvanizada conduit pared delgada de 3/4\", el concepto incluye ranurado, resanado con mortero cemento-arena 1:4, prueba del correcto funcionamiento de las instalaciones y todo lo necesario para su correcto funcionamiento.","Pza",1,551.73,551.73]
["Concepto",null,"IE-02U","      Salida eléctrica para tomacorriente, incluye; Contacto doble, tapa, poliducto eléctrico, cableado, ranurado, sujeción de poliducto, mano de obra y equipo.","Sal",5,391.15,1955.75]
["Concepto",null,"IE-03U","      Salida eléctrica para apagador sencillo,  incluye: tapa de una via, poliducto eléctrico naranja reforzado de 1/2\", cableado con cable thw #12, ranurado, resanado con mortero cemento-arena 1:4, sujeción de poliducto, mano de obra y equipo.","Sal",1,436.13,436.13]
["Concepto",null,"IE-04U","      Salida eléctrica para apagador doble, incluye; tapa de dos vías, poliducto eléctrico naranja reforzado de 1/2\", cableado con cable thw #12, ranurado, resanado con mortero cemento-arena 1:4, sujeción de poliducto, mano de obra y equipo.","Sal",2,452.25,904.5]
["Concepto",null,"IE-05U","      Salida eléctrica para lámpara,  incluye; cableado con cable thw #12,  caja octogonal de 4\", con poliducto naranja reforzado de 1/2\", cableado, ranurado, resanado con mortero cemento arena 1:4, sujeción de poliducto, mano de obra y equipo.","Sal",5,560.63,2803.15]
["Concepto",null,"IE-06U","      Suministro  de foco fluorescente espiral 23 w. De luz fria con 100 W de iluminacion según proyecto,","Pza",5,54.17,270.85000000000002]
["Subcapítulo","-","7.-","   INSTALACIONES HIDRÁULICAS Y SANITARIAS",null,null,null,17809.22]
["Concepto",null,"IHS-01U","      Salidas para instalación sanitaria de 1 1/2\",  2\" y 4\" para ventila,  lavabo, sanitario, tarja, lavadero y regadera, a base de tubería de pvc, conexiones, pegamento, ranurado, resanado con mortero cemento-arena 1:4, pendiente, el concepto incluye la conexión de registro a registro con tubería pvc sanitaria de 4\",  materiales, mano de obra, herramienta y equipo.","Sal",6,540.37,3242.22]
["Concepto",null,"IHS-02U","      Salidas para instalación hidráulica  para  regadera agua fría y caliente, lavabo, sanitario,  tarja o zinc y regadera con tubería cpvc de 1/2\" marca duralon o similar, el concepto incluye: limpieza,  conexiones, ranurado, pendiente, materiales, mano de obra, herramienta,  equipo, resanado con mortero cemento-arena 1:4, prueba del correcto funcionamiento de las instalaciones y todo lo necesario para su correcto funcionamiento.","Sal",6,559.91999999999996,3359.52]
["Concepto",null,"IHS-03U","      Suministro e instalación de sanitario línea económica  en color blanco, incluye asiento, pijas, cuello de cera, manguera flexible, llave cromada de 1/2\".","Pza",1,1764.34,1764.34]
["Concepto",null,"IHS-04U","      Suministro e instalación de lavabo marca lamosa o similar línea económica  en color blanco, incluye: Llave mezcladora marca helvex o similar línea económica, patas, soportes, manguera flexible, llave cromada de 1/2\", cespol bote.","Pza",1,2099.33,2099.33]
["Concepto",null,"IHS-05U","      Suministro e instalación de regadera línea económica  incluye brazo y chapetón.","Pza",1,183.02,183.02]
["Concepto",null,"IHS-06U","      Construcción de registro sanitario de 46x46cm de medida interna por 45 cms de profundidad, a base de ladrillo recocido común de la región de 7x14x28 cm, junteado con mortero cal-arena 1:5 + 10% de cemento, base y tapa a base de concreto F'c=150 kg/cm2 con t.m.a. 3/4\" reforzado con malla electrosoldada 6x6-10/10 el concepto incluye: enjarre interior con mortero cemento-arena 1:3, fabricación y colocación de dos jaladeras para la tapa a base de alambrón de 1/4\", con pases a base de poliducto de 1/2\". y todo lo necesario para su correcta ejecución.","Pza",2,1121.4100000000001,2242.8200000000002]
["Concepto",null,"IHS-07U","      Suministro e instalación de tinaco de 750 lt para garantizar una vida útil de 30 años, con todos los accesorios como jarro de aire, flotador #5, válvula de llenado ¾\", multiconector con válvula de esfera, tuerca unión y válvula check, incluye base para nivelar tinaco (detalle plano), la alimentación hidráulica por medio de tubería cpvc de 1/2\" y todo lo necesario para su correcto funcionamiento.","Pza",1,3105.31,3105.31]
["Concepto",null,"IHS-08U","      Suministro e instalación de lavadero doble de empotrar, el concepto incluye; salida hidraulica y sanitaria firme de concreto sencillo, murete de block de 12x20x40 cm, llave de jardín de 1/2\",  resanado con mortero cemento-arena 1:4  y todo lo necesario para su correcto funcionamiento.","Pza",1,1812.66,1812.66]

{"sheet":"Hoja7","index":14,"n_rows":29,"n_cols":9,"rows_kept":29,"cut":false,"hidden":true,"merged":[]}
["Capítulo","-",null,"CONSTRUCCIÓN DE RECAMARA ADICIONAL  DE 16.65 M2 URBANA",null,1,69896.160000000003,69896.160000000003,"SESENTA Y NUEVE MIL OCHOCIENTOS NOVENTA Y SEIS  PESOS 16/100 M.N."]
["Subcapítulo","-",null,"   LOSA DE CIMENTACIÓN",null,1,9892.3700000000008,9892.3700000000008,"NUEVE MIL OCHOCIENTOS NOVENTA Y DOS  PESOS 37/100 M.N."]
["Concepto",null,"PC-01U","            Limpia, trazo y nivelación.","M2",16.649999999999999,12.81,213.29,"DOCE  PESOS 81/100 M.N."]
["Concepto",null,"PC-02U","            Excavación a mano en terreno investigado en obra, cualquier profundidad, incluye afine de taludes y acarreo fuera de la obra de material no utilizable.","M3",0.26,139.97,36.39,"CIENTO TREINTA Y NUEVE  PESOS 97/100 M.N."]
["Concepto",null,"PC-05U","            Losa de Cimentación de 9 cm de espesor, a base de concreto F'c=200  kg/cm2; t.m.a. 3/4\" hecho en obra; reforzado con  malla electrosoldada 6x6-10/10, plantilla de 5 cm de espesor a base de concreto F'c=100 kg/cm2 t.m.a. 3/4\", dentellón perimetral e intermedio a base de armex de 15x20 cm; anclaje a base de  bastones con varilla corrugada 3/8\" grado 42 o 5/16 DA 6000  @ 30 con 40 cm de largo donde se indique en los planos de proyecto,  acabado pulido, incluye: fumigacion antitermitas con fumigante aditivo adherente termidor o similar, curado, vibrado, colado y todo lo necesario para su correcta ejecución.","M2",16.649999999999999,537.30999999999995,8946.2099999999991,"QUINIENTOS TREINTA Y SIETE  PESOS 31/100 M.N."]
["Concepto",null,"PC-06U","            Impermeabilización a base de producto epóxico color negro aplicado sobre los 12 cm del desplante y 9 cm del espesor de la losa en todo el perímetro, incluye: materiales, mano de obra, herramienta y equipo necesarios para su correcta ejecución.","Ml",13.98,31.3,437.57,"TREINTA Y UN  PESOS 30/100 M.N."]
["Concepto",null,"PC-07U","            Afine, nivelacion y compactacion de terreno natural para desplante de losa de cimentacio, incluye todo lo necesario para su correcta ejecucion.","M2",16.649999999999999,15.55,258.91000000000003,"QUINCE  PESOS 55/100 M.N."]
["Subcapítulo","-",null,"   ALBAÑILERIA",null,1,17858.13,17858.13,"DIECISIETE MIL OCHOCIENTOS CINCUENTA Y OCHO  PESOS 13/100 M.N."]
["Concepto",null,"MC-01U","            Construcción de muro de block de 12x20x40 cm junteado con mortero cemento arena proporción 1:4, incluye; plomeado, relleno de huecos en contorno de ventanas a base de concreto F´c= 150 kg/cm2 hecho en obra t.m.a. 3/4\", materiales, mano de obra, herramienta, equipo, deberá quedar acabado comun.","M2",32.06,358.05,11479.08,"TRESCIENTOS CINCUENTA Y OCHO  PESOS 05/100 M.N."]
["Concepto",null,"MC-02U","            Castillo K-1 de concreto F´c=150 kg/cm2 hecho en obra t.m.a. 3/4\", 12x12 cm de sección, armado con armex 12x12-4; incluye: cimbra aparente y descimbra; fabricación, colado y  curado del concreto; materiales y mano de obra, deberá de quedar con acabado final aparente.","Ml",9.06,212.09,1921.54,"DOSCIENTOS DOCE  PESOS 09/100 M.N."]
["Concepto",null,"MC-02UA","            Castillo K-2 ahogados de 2.50 ML de altura incluye el pretil, con  concreto F´c=150 kg/cm2 hecho en obra t.m.a. 3/4\", con una varilla corrugada de refuerzo de 3/8\";  armado, colado y  vibrado del concreto; materiales y mano de obra,.","Ml",9.09,52.92,481.04,"CINCUENTA Y DOS  PESOS 92/100 M.N."]
["Concepto",null,"MC-03U","            Cadena de cerramiento de concreto F´c=200 kg/cm2 hecho en obra t.m.a. 3/4\", 12x20 cm de sección, armada con armex 12X20-4; incluye: cimbra aparente y descimbra; fabricación, colado y  curado del concreto; materiales y mano de obra, deberá de quedar con acabado final aparente.","Ml",15.84,251.04,3976.47,"DOSCIENTOS CINCUENTA Y UN  PESOS 04/100 M.N."]
["Subcapítulo","-",null,"   CUBIERTA",null,1,13368.57,13368.57,"TRECE MIL TRESCIENTOS SESENTA Y OCHO  PESOS 57/100 M.N."]
["Concepto",null,"CU-01U","            Losa aligerada de 16 cm de espesor, a base de bovedilla de poliestireno con densidad de 12 kg/m3 y vigueta de alma abierta con armadura de acero diseño 10-36 de la marca deacero o similar, con patín de 12 cm de ancho por 5 cm de peralte, colado de capa de compresión  5 cms con concreto F'c=200 kg/cm2, t.m.a. 3/4\", reforzado malla electrosoldada de 6x6-10/10, el concepto incluye: afine de la superficie superior  con acabado semipulido para recibir impermeabilización, cimbra y descimbraaparente, colado, vibrado, curado y todo lo necesario para su correcta ejecución.","M2",17.260000000000002,682.29,11776.33,"SEISCIENTOS OCHENTA Y DOS  PESOS 29/100 M.N."]
["Concepto",null,"CU-02U","            Impermeabilización de losa de azotea a base de impermeabilizante elastomerico de 3 años de garantía,a razón de 1 m2/lt, y  tela de refuerzo doble, incluye limpieza y preparación de la superficie.","M2",17.260000000000002,92.25,1592.24,"NOVENTA Y DOS  PESOS 25/100 M.N."]
["Subcapítulo","-",null,"   ACABADOS",null,1,21355.56,21355.56,"VEINTIUN MIL TRESCIENTOS CINCUENTA Y CINCO  PESOS 56/100 M.N."]
["Concepto",null,"AC-01U","            Chaflán de 10x10 cms. con pasta de cemento-arena prop. 1:4, según detalle indicado en los planos, Incluye: Material, mano de obra, herramienta y todo lo necesario para su correcta ejecución.","ML",12.02,80.45,967.01,"OCHENTA  PESOS 45/100 M.N."]
["Concepto",null,"AC-03U","            Aplanado de yeso en plafones, de 1.5 cm de espesor promedio, a plomo y regla, acabado pulido, reforzada con malla pollera en toda el área incluye: perfilado de aristas y remate en columnas, trabes y muros.","M2",14.75,218.75,3226.56,"DOSCIENTOS DIECIOCHO  PESOS 75/100 M.N."]
["Concepto",null,"AC-13UA","            Aplanado grueso en muros exteriores e interiroes  a base de  mortero cemento arena 1:4 en un espesor minimo de 1.5 cms , y terminado fino floteado con mortero cemento-arena 1:3 incluye: perfilado de aristas, remates, material, mano de obra y emboquillado.","m2",77.349999999999994,181.26,14020.46,"CIENTO OCHENTA Y UN  PESOS 26/100 M.N."]
["Concepto",null,"AC-14U","            Pintura vinílica lavable en muros exteriores, interiores y plafond de yeso, incluye: material, limpieza, rebabeado, preparación de la superficie, aplicación de sellador vinílico y dos manos de pintura.","M2",92.1,34.11,3141.53,"TREINTA Y CUATRO  PESOS 11/100 M.N."]
["Subcapítulo","-",null,"   PUERTAS Y VENTANAS",null,1,4493.8,4493.8,"CUATRO MIL CUATROCIENTOS NOVENTA Y TRES  PESOS 80/100 M.N."]
["Concepto",null,"PV-01U","            Suministro e instalación de puerta de 0.90x2.06 mts, tipo multypanel lisa, fabricado con hoja de acero liso galvanizado cal. 28, con bastidor de madera de pino estufado, terminado en color blanco, relleno de esouma rigida de poliuretano con una densidad de 32 a 34 kg/m3 .,incluye marco metálico de 0.96x2.10m fabricado a base de perfil tubular M-225, chapa tipo bola con llave para exterior modelo MH52T3  marca fanal o similar acabado en latón brillante para exterior, dos bisagras de 3\", pintura esmalte anticorrosivo color blanco, perfilado del hueco previo a su colocación con mortero cemento-arena 1:4. Herramienta, mano de obra y todo lo necesario para su correcta ejecución.","Pza",1,3179.76,3179.76,"TRES MIL CIENTO SETENTA Y NUEVE  PESOS 76/100 M.N."]
["Concepto",null,"PV-04U","            Suministro y colocación  de ventana corrediza de 0.83x1.05m a base de perfil de aluminio anodizado natural  de 1 1/2\" con cristal claro de 3mm con un fijo lateral y un corredizo, incluye: perfilado del hueco, previo a su colocación a base de mortero cemento-arena proporción  1:4. silicon, Herramienta, mano de obra y todo lo necesario para su correcta ejecución.","Pza",1,1314.04,1314.04,"UN MIL TRESCIENTOS CATORCE  PESOS 04/100 M.N."]
["Subcapítulo","-",null,"   INSTALACIONES ELECTRICAS",null,1,2927.73,2927.73,"DOS MIL NOVECIENTOS VEINTISIETE  PESOS 73/100 M.N."]
["Concepto",null,"IE-02U","            Salida eléctrica para tomacorriente, incluye; Contacto doble, tapa, poliducto eléctrico, cableado, ranurado, sujeción de poliducto, mano de obra y equipo.","Sal",2,391.12,782.24,"TRESCIENTOS NOVENTA Y UN  PESOS 12/100 M.N."]
["Concepto",null,"IE-04U","            Salida eléctrica para apagador doble, incluye; tapa de dos vías, poliducto eléctrico naranja reforzado de 1/2\", cableado con cable thw #12, ranurado, resanado con mortero cemento-arena 1:4, sujeción de poliducto, mano de obra y equipo.","Sal",1,452.21,452.21,"CUATROCIENTOS CINCUENTA Y DOS  PESOS 21/100 M.N."]
["Concepto",null,"IE-05U","            Salida eléctrica para lámpara,  incluye; cableado con cable thw #12,  caja octogonal de 4\", con poliducto naranja reforzado de 1/2\", cableado, ranurado, resanado con mortero cemento arena 1:4, sujeción de poliducto, mano de obra y equipo.","Sal",2,560.59,1121.18,"QUINIENTOS SESENTA  PESOS 59/100 M.N."]
["Concepto",null,"IE-06U","            Suministro  de foco fluorescente espiral 23 w. De luz fria con 100 W de iluminacion según proyecto,","Pza",2,53.97,107.94,"CINCUENTA Y TRES  PESOS 97/100 M.N."]
["Concepto",null,"IE-07U","            Alimentación eléctrica de la vivienda existente a la recamara adicional para una distancia maxima de 6 mts el concepto incluye; poliducto naranja reforzado, cable thw #12, prueba del funcionamiento de las instalaciones y todo lo necesario para su correcta ejecucion.","Sal,",1,464.16,464.16,"CUATROCIENTOS SESENTA Y CUATRO  PESOS 16/100 M.N."]

{"sheet":"Hoja8","index":15,"n_rows":32,"n_cols":8,"rows_kept":32,"cut":false,"hidden":true,"merged":[]}
["Capítulo","-",null,"CIMENTACIÓN",null,null,null,2937.88]
["Concepto",null,"PC-13U","   Cadena de desplante armada con armex 12 X 20 - 4, anclada a piso existente con varillas roscada #3 @ 40 cm, reforzada con concreto F´C=200 KG/CM2, T.M.A.= 3/4\" Incluye: mano de obra, herramientay todo lo necesario para su correcta ejecucion.","ML",9.56,307.31,2937.88]
["Capítulo","-",null,"ALBAÑILERIA",null,null,null,14322.98]
["Concepto",null,"MC-20U","   Demolicion de piso de 10 cm de espesor, incluye mano de obra y todo lo necesario para su correcta ejecucion."," M2",3,112.76,338.28]
["Concepto",null,"MC-21U","   reposicion de piso de concreto de 10 cm de espesor, con concreto f´c= 150 kg/cm2 armado con malla electrosoldada 6-6 / 10-10, T.M.A. 3/4\", incluye material, mano de obra y todo lo necesario para su correcta ejecucion."," M2",3,443.96,1331.88]
["Concepto",null,"MC-01U","   Construcción de muro de block de 12x20x40 cm junteado con mortero cemento arena proporción 1:4, incluye; plomeado, relleno de huecos en contorno de ventanas a base de concreto F´c= 150 kg/cm2 hecho en obra t.m.a. 3/4\", materiales, mano de obra, herramienta, equipo, deberá quedar acabado comun.","M2",29.6,427.46,12652.82]
["Capítulo","-",null,"ACABADOS",null,null,null,17921.57]
["Concepto",null,"AC-03U","   Aplanado de yeso en plafones, de 1.5 cm de espesor promedio, a plomo y regla, acabado pulido, reforzada con malla pollera en toda el área incluye: perfilado de aristas y remate en columnas, trabes y muros.","M2",18.45,235.95,4353.28]
["Concepto",null,"AC-13UA","   Aplanado grueso en muros exteriores e interiroes  a base de  mortero cemento arena 1:4 en un espesor minimo de 1.5 cms , y terminado fino floteado con mortero cemento-arena 1:3 incluye: perfilado de aristas, remates, material, mano de obra y emboquillado.","m2",36.659999999999997,150.51,5517.7]
["Concepto",null,"AC-14U","   Pintura vinílica lavable en muros exteriores, interiores y plafond de yeso, incluye: material, limpieza, rebabeado, preparación de la superficie, aplicación de sellador vinílico y dos manos de pintura.","M2",36.659999999999997,37.950000000000003,1391.25]
["Concepto",null,"AC-04U","   Suministro y colocación de azulejo de 20x30cm de color blanco asentado con cemento crest o similar, boquilla de 2 mm a base de junta crest anti-hongo o similar.  Incluye: Herramienta, mano de obra y todo lo necesario para su correcta ejecución.","M2",5.67,459.58,2605.8200000000002]
["Concepto",null,"AC-05U","   Suministro y colocación de piso antiderrapante de 20x20cm de color blanco de la marca porcelanite o similar asentado con cemento crest o similar, boquilla de 2 mm a base de junta crest anti-hongo o similar. Incluye: Herramienta, mano de obra y todo lo necesario para su correcta ejecución.","M2",8.6,471.34,4053.52]
["Capítulo","-",null,"INSTALACIONES ESPECIALES",null,null,null,10156.959999999999]
["Concepto",null,"IES-01","   Suministro y colocacion de barra de seguridad de 70 cm, de acero inoxidable; incluye: barra de acero de 70 cm de longuitud, materia, mano de obra y todo lo necesario para su correcta ejecucion.","Pza",3,2040.51,6121.53]
["Concepto",null,"IES-02","   Suministro de silla para persona con discapacidad para el area de regadera","Pza",1,4035.43,4035.43]
["Capítulo","-",null,"PUERTAS Y VENTANAS",null,null,null,4631.63]
["Concepto",null,"PV-20","   Suministro e instalación de puerta de 1.16x2.06 mts, tipo multypanel lisa, fabricado con hoja de acero liso galvanizado cal. 28, con bastidor de madera de pino estufado, terminado en color blanco, relleno de espuma rigida de poliuretano con una densidad de 32 a 34 kg/m3 .,incluye marco metálico de 1.20x2.10m fabricado a base de perfil tubular M-225, chapa tipo palanca con llave para interior acabado en acero inoxidable, dos bisagras de 3\", pintura esmalte anticorrosivo color blanco, perfilado del hueco previo a su colocación con mortero cemento-arena 1:4. Herramienta, mano de obra y todo lo necesario para su correcta ejecución.","Pza",1,3618.78,3618.78]
["Concepto",null,"PV-05U","   Suministro y colocación  de ventana corrediza de 0.60x0.40 m a base de perfil de aluminio anodizado natural  de 1 1/2\" con cristal claro de 3mm con un fijo lateral y un corredizo, incluye: perfilado del hueco, previo a su colocación a base de mortero cemento-arena proporción  1:4. silicon, Herramienta, mano de obra y todo lo necesario para su correcta ejecución.","Pza",1,1012.85,1012.85]
["Capítulo","-",null,"INSTALACIONES ELECTRICAS",null,null,null,3371.24]
["Concepto",null,"IE-02","   SALIDA ELÉCTRICA PARA TOMACORRIENTE, INCLUYE; CONTACTO DOBLE, TAPA, POLIDUCTO ELÉCTRICO, CABLEADO, RANURADO, SUJECIÓN DE POLIDUCTO, MANO DE OBRA Y EQUIPO.","SAL",1,444.96,444.96]
["Concepto",null,"IE-03","   SALIDA ELÉCTRICA PARA APAGADOR SENCILLO, INCLUYE: TAPA DE UNA VIA, POLIDUCTO ELÉCTRICO NARANJA REFORZADO DE 1/2\", CABLEADO CON CABLE THW #12, RANURADO, RESANADO CON MORTERO CEMENTO-ARENA 1:4, SUJECIÓN DE POLIDUCTO, MANO DE","SAL",2,499.1,998.2]
["Concepto",null,"IE-05","   SALIDA ELÉCTRICA PARA LÁMPARA, INCLUYE; LA ROSETA DE PORCELANA DE 4\"\" , CABLEADO CON CABLE THW #12, CAJA OCTOGONAL DE 4\"\", CON POLIDUCTO NARANJA REFORZADO DE 1/2\"\", CABLEADO, RANURADO, RESANADO CON MORTERO CEMENTO ARENA 1:4, SUJECIÓN DE POLIDUCTO, MANO DE OBRA Y EQUIPO.","SAL",2,639.42999999999995,1278.8599999999999]
["Concepto",null,"IE-06","   SUMINISTRO DE FOCO FLUORESCENTE ESPIRAL 23 W. DE LUZ FRIA CON 100 W DE ILUMINACION SEGÚN PROYECTO,","PZA",2,58.45,116.9]
["Concepto",null,"IE-07U","   Alimentación eléctrica de la vivienda existente a la recamara adicional para una distancia maxima de 6 mts el concepto incluye; poliducto naranja reforzado, cable thw #12, prueba del funcionamiento de las instalaciones y todo lo necesario para su correcta ejecucion.","Sal,",1,532.32000000000005,532.32000000000005]
["Capítulo","-",null," INSTALACIONES HIDRÁULICAS Y SANITARIAS",null,null,null,9435.84]
["Concepto",null,"IHS-01U","   Salidas para instalación sanitaria de 1 1/2\",  2\" y 4\" para ventila,  lavabo, sanitario, tarja, lavadero y regadera, a base de tubería de pvc, conexiones, pegamento, ranurado, resanado con mortero cemento-arena 1:4, pendiente, el concepto incluye la conexión de registro a registro con tubería pvc sanitaria de 4\",  materiales, mano de obra, herramienta y equipo.","Sal",4,589.66,2358.64]
["Concepto",null,"IHS-02U","   Salidas para instalación hidráulica  para  regadera agua fría y caliente, lavabo, sanitario,  tarja o zinc y regadera con tubería cpvc de 1/2\" marca duralon o similar, el concepto incluye: limpieza,  conexiones, ranurado, pendiente, materiales, mano de obra, herramienta,  equipo, resanado con mortero cemento-arena 1:4, prueba del correcto funcionamiento de las instalaciones y todo lo necesario para su correcto funcionamiento.","Sal",4,630.92999999999995,2523.7199999999998]
["Concepto",null,"IHS-03U","   Suministro e instalación de sanitario línea económica  en color blanco, incluye asiento, pijas, cuello de cera, manguera flexible, llave cromada de 1/2\".","Pza",1,2065.0100000000002,2065.0100000000002]
["Concepto",null,"IHS-04U","   Suministro e instalación de lavabo marca lamosa o similar línea económica  en color blanco, incluye: Llave mezcladora marca helvex o similar línea económica, patas, soportes, manguera flexible, llave cromada de 1/2\", cespol bote.","Pza",1,2268.9499999999998,2268.9499999999998]
["Concepto",null,"IHS-05U","   Suministro e instalación de regadera línea económica  incluye brazo y chapetón.","Pza",1,219.52,219.52]
[]
[null,null,null,null,null,null,"TOTAL",{"$f":"+H1+H3+H7+H13+H16+H19+H25","v":62778.1}]

{"sheet":"2019","index":16,"n_rows":32,"n_cols":8,"rows_kept":32,"cut":false,"hidden":true,"merged":[]}
["Capítulo","-",null,"CIMENTACIÓN"]
["Concepto",null,"PC-13U","   Cadena de desplante armada con armex 12 X 20 - 4, anclada a piso existente con varillas roscada #3 @ 40 cm, reforzada con concreto F´C=200 KG/CM2, T.M.A.= 3/4\" Incluye: mano de obra, herramientay todo lo necesario para su correcta ejecucion.","ML",9.56,null,{"$f":"+F2*G2","v":0}]
["Capítulo","-",null,"ALBAÑILERIA",null,null,null,{"$f":"+F3*G3","v":0}]
["Concepto",null,"MC-20U","   Demolicion de piso de 10 cm de espesor, incluye mano de obra y todo lo necesario para su correcta ejecucion."," M2",3,null,0]
["Concepto",null,"MC-21U","   reposicion de piso de concreto de 10 cm de espesor, con concreto f´c= 150 kg/cm2 armado con malla electrosoldada 6-6 / 10-10, T.M.A. 3/4\", incluye material, mano de obra y todo lo necesario para su correcta ejecucion."," M2",3,null,0]
["Concepto",null,"MC-01U","   Construcción de muro de block de 12x20x40 cm junteado con mortero cemento arena proporción 1:4, incluye; plomeado, relleno de huecos en contorno de ventanas a base de concreto F´c= 150 kg/cm2 hecho en obra t.m.a. 3/4\", materiales, mano de obra, herramienta, equipo, deberá quedar acabado comun.","M2",29.6,null,0]
["Capítulo","-",null,"ACABADOS",null,null,null,0]
["Concepto",null,"AC-03U","   Aplanado de yeso en plafones, de 1.5 cm de espesor promedio, a plomo y regla, acabado pulido, reforzada con malla pollera en toda el área incluye: perfilado de aristas y remate en columnas, trabes y muros.","M2",18.45,null,0]
["Concepto",null,"AC-13UA","   Aplanado grueso en muros exteriores e interiroes  a base de  mortero cemento arena 1:4 en un espesor minimo de 1.5 cms , y terminado fino floteado con mortero cemento-arena 1:3 incluye: perfilado de aristas, remates, material, mano de obra y emboquillado.","m2",36.659999999999997,null,0]
["Concepto",null,"AC-14U","   Pintura vinílica lavable en muros exteriores, interiores y plafond de yeso, incluye: material, limpieza, rebabeado, preparación de la superficie, aplicación de sellador vinílico y dos manos de pintura.","M2",36.659999999999997,null,0]
["Concepto",null,"AC-04U","   Suministro y colocación de azulejo de 20x30cm de color blanco asentado con cemento crest o similar, boquilla de 2 mm a base de junta crest anti-hongo o similar.  Incluye: Herramienta, mano de obra y todo lo necesario para su correcta ejecución.","M2",5.67,null,0]
["Concepto",null,"AC-05U","   Suministro y colocación de piso antiderrapante de 20x20cm de color blanco de la marca porcelanite o similar asentado con cemento crest o similar, boquilla de 2 mm a base de junta crest anti-hongo o similar. Incluye: Herramienta, mano de obra y todo lo necesario para su correcta ejecución.","M2",8.6,null,0]
["Capítulo","-",null,"INSTALACIONES ESPECIALES",null,null,null,0]
["Concepto",null,"IES-01","   Suministro y colocacion de barra de seguridad de 70 cm, de acero inoxidable; incluye: barra de acero de 70 cm de longuitud, materia, mano de obra y todo lo necesario para su correcta ejecucion.","Pza",3,null,0]
["Concepto",null,"IES-02","   Suministro de silla para persona con discapacidad para el area de regadera","Pza",1,null,0]
["Capítulo","-",null,"PUERTAS Y VENTANAS",null,null,null,0]
["Concepto",null,"PV-20","   Suministro e instalación de puerta de 1.16x2.06 mts, tipo multypanel lisa, fabricado con hoja de acero liso galvanizado cal. 28, con bastidor de madera de pino estufado, terminado en color blanco, relleno de espuma rigida de poliuretano con una densidad de 32 a 34 kg/m3 .,incluye marco metálico de 1.20x2.10m fabricado a base de perfil tubular M-225, chapa tipo palanca con llave para interior acabado en acero inoxidable, dos bisagras de 3\", pintura esmalte anticorrosivo color blanco, perfilado del hueco previo a su colocación con mortero cemento-arena 1:4. Herramienta, mano de obra y todo lo necesario para su correcta ejecución.","Pza",1,null,0]
["Concepto",null,"PV-05U","   Suministro y colocación  de ventana corrediza de 0.60x0.40 m a base de perfil de aluminio anodizado natural  de 1 1/2\" con cristal claro de 3mm con un fijo lateral y un corredizo, incluye: perfilado del hueco, previo a su colocación a base de mortero cemento-arena proporción  1:4. silicon, Herramienta, mano de obra y todo lo necesario para su correcta ejecución.","Pza",1,null,0]
["Capítulo","-",null,"INSTALACIONES ELECTRICAS",null,null,null,0]
["Concepto",null,"IE-02","   SALIDA ELÉCTRICA PARA TOMACORRIENTE, INCLUYE; CONTACTO DOBLE, TAPA, POLIDUCTO ELÉCTRICO, CABLEADO, RANURADO, SUJECIÓN DE POLIDUCTO, MANO DE OBRA Y EQUIPO.","SAL",1,null,0]
["Concepto",null,"IE-03","   SALIDA ELÉCTRICA PARA APAGADOR SENCILLO, INCLUYE: TAPA DE UNA VIA, POLIDUCTO ELÉCTRICO NARANJA REFORZADO DE 1/2\", CABLEADO CON CABLE THW #12, RANURADO, RESANADO CON MORTERO CEMENTO-ARENA 1:4, SUJECIÓN DE POLIDUCTO, MANO DE","SAL",2,null,0]
["Concepto",null,"IE-05","   SALIDA ELÉCTRICA PARA LÁMPARA, INCLUYE; LA ROSETA DE PORCELANA DE 4\"\" , CABLEADO CON CABLE THW #12, CAJA OCTOGONAL DE 4\"\", CON POLIDUCTO NARANJA REFORZADO DE 1/2\"\", CABLEADO, RANURADO, RESANADO CON MORTERO CEMENTO ARENA 1:4, SUJECIÓN DE POLIDUCTO, MANO DE OBRA Y EQUIPO.","SAL",2,null,0]
["Concepto",null,"IE-06","   SUMINISTRO DE FOCO FLUORESCENTE ESPIRAL 23 W. DE LUZ FRIA CON 100 W DE ILUMINACION SEGÚN PROYECTO,","PZA",2,null,0]
["Concepto",null,"IE-07U","   Alimentación eléctrica de la vivienda existente a la recamara adicional para una distancia maxima de 6 mts el concepto incluye; poliducto naranja reforzado, cable thw #12, prueba del funcionamiento de las instalaciones y todo lo necesario para su correcta ejecucion.","Sal,",1,null,0]
["Capítulo","-",null," INSTALACIONES HIDRÁULICAS Y SANITARIAS",null,null,null,0]
["Concepto",null,"IHS-01U","   Salidas para instalación sanitaria de 1 1/2\",  2\" y 4\" para ventila,  lavabo, sanitario, tarja, lavadero y regadera, a base de tubería de pvc, conexiones, pegamento, ranurado, resanado con mortero cemento-arena 1:4, pendiente, el concepto incluye la conexión de registro a registro con tubería pvc sanitaria de 4\",  materiales, mano de obra, herramienta y equipo.","Sal",4,null,0]
["Concepto",null,"IHS-02U","   Salidas para instalación hidráulica  para  regadera agua fría y caliente, lavabo, sanitario,  tarja o zinc y regadera con tubería cpvc de 1/2\" marca duralon o similar, el concepto incluye: limpieza,  conexiones, ranurado, pendiente, materiales, mano de obra, herramienta,  equipo, resanado con mortero cemento-arena 1:4, prueba del correcto funcionamiento de las instalaciones y todo lo necesario para su correcto funcionamiento.","Sal",4,null,0]
["Concepto",null,"IHS-03U","   Suministro e instalación de sanitario línea económica  en color blanco, incluye asiento, pijas, cuello de cera, manguera flexible, llave cromada de 1/2\".","Pza",1,null,0]
["Concepto",null,"IHS-04U","   Suministro e instalación de lavabo marca lamosa o similar línea económica  en color blanco, incluye: Llave mezcladora marca helvex o similar línea económica, patas, soportes, manguera flexible, llave cromada de 1/2\", cespol bote.","Pza",1,null,0]
["Concepto",null,"IHS-05U","   Suministro e instalación de regadera línea económica  incluye brazo y chapetón.","Pza",1,null,0]
[]
[null,null,null,null,null,null,null,{"$f":"SUM(H1:H30)","v":0}]

{"sheet":"Hoja9","index":17,"n_rows":7,"n_cols":9,"rows_kept":7,"cut":false,"hidden":true,"merged":[]}
["Capítulo","+",null,"CIMENTACIÓN",null,null,null,3397.15,{"$f":"+'F-22 CATAL'!G16","v":0}]
["Capítulo","+",null,"ALBAÑILERIA",null,null,null,15460.85,{"$f":"+'F-22 CATAL'!G21","v":0}]
["Capítulo","+",null,"ACABADOS",null,null,null,20630.810000000001,{"$f":"+'F-22 CATAL'!G33","v":0}]
["Capítulo","+",null,"INSTALACIONES ESPECIALES",null,null,null,10605.33,{"$f":"+'F-22 CATAL'!G38","v":0}]
["Capítulo","+",null,"PUERTAS Y VENTANAS",null,null,null,5475.59,{"$f":"+'F-22 CATAL'!G43:H43","v":{"$error":"#VALUE!"}}]
["Capítulo","+",null,"INSTALACIONES ELECTRICAS",null,null,null,3997.4]
["Capítulo","+",null," INSTALACIONES HIDRÁULICAS Y SANITARIAS",null,null,null,11375.84]

{"sheet":"Hoja10","index":18,"n_rows":0,"n_cols":0,"rows_kept":0,"cut":false,"hidden":true,"merged":[]}